Workbook

Sheet 43.全市一般公共预算收入
A1: 2022年攀枝花市一般公共预算收入执行情况表
E2: 单位：万元，%
A3: 科目 | B3: 年初预算数 | C3: 变动预算数 | D3: 执行数 | E3: 为变动预算 | F3: 为上年决算
A4: 一、税收收入 | B4: 583,317 | C4: 506,356 | D4: 510,116 | E4: 100.7 | F4: 100.2
A5: 增值税 | B5: 257,328 | C5: 203,118 | D5: 203,261 | E5: 100.1 | F5: 96.8
A6: 消费税
A7: 企业所得税 | B7: 74,233 | C7: 71,568 | D7: 71,582 | E7: 100.0 | F7: 105.9
A8: 个人所得税 | B8: 14,647 | C8: 15,456 | D8: 15,509 | E8: 100.3 | F8: 110.7
A9: 资源税 | B9: 48,925 | C9: 42,458 | D9: 42,765 | E9: 100.7 | F9: 97.1
A10: 城市维护建设税 | B10: 36,515 | C10: 34,264 | D10: 34,250 | E10: 100.0 | F10: 96.0
A11: 房产税 | B11: 19,389 | C11: 20,271 | D11: 20,312 | E11: 100.2 | F11: 111.0
A12: 印花税 | B12: 17,032 | C12: 14,542 | D12: 14,586 | E12: 100.3 | F12: 75.8
A13: 城镇土地使用税 | B13: 37,716 | C13: 36,755 | D13: 37,069 | E13: 100.9 | F13: 134.2
A14: 土地增值税 | B14: 14,005 | C14: 8,278 | D14: 8,203 | E14: 99.1 | F14: 71.0
A15: 车船税 | B15: 7,788 | C15: 7,715 | D15: 7,635 | E15: 99.0 | F15: 98.6
A16: 耕地占用税 | B16: 11,813 | C16: 16,899 | D16: 17,059 | E16: 100.9 | F16: 149.4
A17: 契税 | B17: 31,703 | C17: 24,405 | D17: 27,246 | E17: 111.6 | F17: 93.2
A18: 烟叶税 | B18: 7,779 | C18: 6,411 | D18: 6,411 | E18: 100.0 | F18: 75.5
A19: 环境保护税 | B19: 4,444 | C19: 4,181 | D19: 4,193 | E19: 100.3 | F19: 102.1
A20: 其他税收收入 | C20: 35 | D20: 35 | E20: 100.0 | F20: 218.8
A21: 二、非税收入 | B21: 319,528 | C21: 322,829 | D21: 322,829 | E21: 100.0 | F21: 82.9
A22: 专项收入 | B22: 38,878 | C22: 32,377 | D22: 31,367 | E22: 96.9 | F22: 93.4
A23: 行政事业性收费收入 | B23: 24,375 | C23: 17,502 | D23: 20,102 | E23: 114.9 | F23: 80.5
A24: 罚没收入 | B24: 46,231 | C24: 35,740 | D24: 35,940 | E24: 100.6 | F24: 87.9
A25: 国有资本经营收入
A26: 国有资源（资产）有偿使用收入 | B26: 165,005 | C26: 189,648 | D26: 185,358 | E26: 97.7 | F26: 80.9
A27: 捐赠收入 | B27: 40 | C27: 90 | D27: 90 | E27: 100.0 | F27: 109.8
A28: 政府住房基金收入 | B28: 4,100 | C28: 13,307 | D28: 13,307 | E28: 100.0 | F28: 356.0
A29: 其他收入 | B29: 40,899 | C29: 34,165 | D29: 36,665 | E29: 107.3 | F29: 136.5
A30: 地方一般公共预算收入 | B30: 902,845 | C30: 829,185 | D30: 832,945 | E30: 100.5 | F30: 92.7

Sheet 44.全市一般公共预算支出
A1: 2022年攀枝花市一般公共预算支出执行情况表
D2: 单位：万元，%
A3: 科目 | B3: 年初预算数 | C3: 变动预算数 | D3: 执行数 | E3: 为变动预算 | F3: 为上年决算
A4: 一、一般公共服务支出 | B4: 154,361 | C4: 176,959 | D4: 173,843 | E4: 98.2 | F4: 112.7
A5: 二、外交支出 | B5: 0 | C5: 0 | D5: 0
A6: 三、国防支出 | B6: 801 | C6: 767 | D6: 747 | E6: 97.4 | F6: 97.3
A7: 四、公共安全支出 | B7: 93,387 | C7: 103,800 | D7: 99,912 | E7: 96.3 | F7: 100.7
A8: 五、教育支出 | B8: 260,711 | C8: 254,771 | D8: 247,328 | E8: 97.1 | F8: 92.0
A9: 六、科学技术支出 | B9: 4,632 | C9: 5,993 | D9: 5,801 | E9: 96.8 | F9: 88.0
A10: 七、文化旅游体育与传媒支出 | B10: 18,302 | C10: 23,080 | D10: 22,459 | E10: 97.3 | F10: 104.9
A11: 八、社会保障和就业支出 | B11: 173,876 | C11: 187,302 | D11: 205,991 | E11: 110.0 | F11: 88.8
A12: 九、卫生健康支出 | B12: 264,069 | C12: 136,796 | D12: 134,491 | E12: 98.3 | F12: 41.2
A13: 十、节能环保支出 | B13: 6,001 | C13: 24,552 | D13: 23,910 | E13: 97.4 | F13: 77.4
A14: 十一、城乡社区支出 | B14: 38,074 | C14: 62,382 | D14: 64,258 | E14: 103.0 | F14: 69.6
A15: 十二、农林水支出 | B15: 84,199 | C15: 187,076 | D15: 184,387 | E15: 98.6 | F15: 103.6
A16: 十三、交通运输支出 | B16: 30,969 | C16: 68,213 | D16: 64,678 | E16: 94.8 | F16: 86.0
A17: 十四、资源勘探工业信息等支出 | B17: 4,653 | C17: 7,575 | D17: 7,269 | E17: 96.0 | F17: 26.3
A18: 十五、商业服务业等支出 | B18: 837 | C18: 3,970 | D18: 3,860 | E18: 97.2 | F18: 92.0
A19: 十六、金融支出 | B19: 334 | C19: 1,949 | D19: 1,836 | E19: 94.2 | F19: 90.3
A20: 十七、自然资源海洋气象等支出 | B20: 8,478 | C20: 16,747 | D20: 16,496 | E20: 98.5 | F20: 167.8
A21: 十八、住房保障支出 | B21: 60,710 | C21: 86,572 | D21: 87,210 | E21: 100.7 | F21: 77.9
A22: 十九、粮油物资储备支出 | B22: 714 | C22: 1,111 | D22: 1,111 | E22: 100.0 | F22: 156.7
A23: 二十、灾害防治及应急管理支出 | B23: 7,986 | C23: 18,300 | D23: 17,754 | E23: 97.0 | F23: 93.0
A24: 二十一、预备费 | B24: 14,250 | C24: 0 | D24: 0
A25: 二十二、其他支出 | B25: 13,829 | C25: 664 | D25: 664 | E25: 100.0 | F25: 16.9
A26: 二十三、债务付息支出 | B26: 42,437 | C26: 60,221 | D26: 57,603 | E26: 95.7 | F26: 111.7
A27: 二十四、债务发行费用支出 | B27: 147 | C27: 175 | D27: 175 | E27: 100.0 | F27: 102.3
A28: 一般公共预算支出 | B28: 1,283,755 | C28: 1,428,975 | D28: 1,421,783 | E28: 99.5 | F28: 82.8

Sheet 45.全市一般公共预算收支平衡
A1: 2022年攀枝花市一般公共预算收支平衡表
A2: 单位：万元
A3: 科目 | B3: 执行数 | C3: 科目 | D3: 执行数
A4: 一般公共预算收入 | B4: 832,945 | C4: 一般公共预算支出 | D4: 1,421,783
A5: 上级补助收入 | B5: 860,195 | C5: 补助下级支出
A6: 返还性收入 | B6: 28,611 | C6: 返还性支出
A7: 所得税基数返还收入 | B7: 9,437 | C7: 所得税基数返还支出
A8: 成品油税费改革税收返还收入 | B8: 21,087 | C8: 成品油税费改革税收返还支出
A9: 增值税税收返还收入 | B9: 38,251 | C9: 增值税税收返还支出
A10: 消费税税收返还收入 | B10: 966 | C10: 消费税税收返还支出
A11: 增值税“五五分享”税收返还收入 | B11: -28,149 | C11: 增值税“五五分享”税收返还支出
A12: 其他返还性收入 | B12: -12,981 | C12: 其他返还性支出
A13: 一般性转移支付收入 | B13: 695,384 | C13: 一般性转移支付支出
A14: 均衡性转移支付收入 | B14: 185,181 | C14: 均衡性转移支付支出
A15: 县级基本财力保障机制奖补资金收入 | B15: 32,098 | C15: 县级基本财力保障机制奖补资金支出
A16: 结算补助收入 | B16: 58,217 | C16: 结算补助支出
A17: 资源枯竭型城市转移支付补助收入 | B17: 12,688 | C17: 资源枯竭型城市转移支付补助支出
A18: 企业事业单位划转补助收入 | B18: 22,453 | C18: 企业事业单位划转补助支出
A19: 产粮(油)大县奖励资金收入 | B19: 142 | C19: 产粮(油)大县奖励资金支出
A20: 重点生态功能区转移支付收入 | B20: 9,961 | C20: 重点生态功能区转移支付支出
A21: 固定数额补助收入 | B21: 54,977 | C21: 固定数额补助支出
A22: 欠发达地区转移支付收入 | B22: 14,888 | C22: 欠发达地区转移支付支出
A23: 公共安全共同财政事权转移支付收入 | B23: 12,552 | C23: 公共安全共同财政事权转移支付支出
A24: 教育共同财政事权转移支付收入 | B24: 43,939 | C24: 教育共同财政事权转移支付支出
A25: 科学技术共同财政事权转移支付收入 | B25: 120 | C25: 科学技术共同财政事权转移支付支出
A26: 文化旅游体育与传媒共同财政事权转移支付收入 | B26: 2,780 | C26: 文化旅游体育与传媒共同财政事权转移支付支出
A27: 社会保障和就业共同财政事权转移支付收入 | B27: 38,719 | C27: 社会保障和就业共同财政事权转移支付支出
A28: 医疗卫生共同财政事权转移支付收入 | B28: 58,890 | C28: 医疗卫生共同财政事权转移支付支出
A29: 节能环保共同财政事权转移支付收入 | B29: 1,441 | C29: 节能环保共同财政事权转移支付支出
A30: 农林水共同财政事权转移支付收入 | B30: 72,375 | C30: 农林水共同财政事权转移支付支出
A31: 交通运输共同财政事权转移支付收入 | B31: 12,835 | C31: 交通运输共同财政事权转移支付支出
A32: 自然资源海洋气象等共同财政事权转移支付收入 | B32: 91 | C32: 自然资源海洋气象等共同财政事权转移支付支出
A33: 住房保障共同财政事权转移支付收入 | B33: 10,206 | C33: 住房保障共同财政事权转移支付支出
A34: 增值税留抵退税转移支付收入 | B34: 16,826 | C34: 增值税留抵退税转移支付支出
A35: 其他退税减税降费转移支付收入 | B35: 14,599 | C35: 其他退税减税降费转移支付支出
A36: 补充县区财力转移支付收入 | B36: 15,792 | C36: 补充县区财力转移支付支出
A37: 其他一般性转移支付收入 | B37: 3,614 | C37: 其他一般性转移支付支出
A38: 专项转移支付收入 | B38: 136,200 | C38: 专项转移支付支出
A39: 下级上解收入 | C39: 上解上级支出 | D39: 127,756
A40: 体制上解收入 | B40: 0 | C40: 体制上解支出 | D40: 11
A41: 专项上解收入 | C41: 专项上解支出 | D41: 127,745
A42: 上年结余 | B42: 118,949 | D42: 0
A43: 调入资金 | B43: 12,310 | C43: 调出资金 | D43: 0
A44: 从政府性基金预算调入 | B44: 10,000 | D44: 0
A45: 从国有资本经营预算调入 | B45: 2,310 | D45: 0
A46: 从其他资金调入 | B46: 0 | D46: 0
A47: 债务收入 | B47: 0 | C47: 债务还本支出 | D47: 258,949
A48: 地方政府债务收入 | B48: 0 | C48: 地方政府一般债务还本支出 | D48: 258,949
A49: 一般债务收入 | B49: 0 | C49: 地方政府一般债券还本支出 | D49: 250,232
A50: 地方政府一般债券收入 | B50: 0 | C50: 地方政府向外国政府借款还本支出 | D50: 6,409
A51: 地方政府向外国政府借款收入 | B51: 0 | C51: 地方政府向国际组织借款还本支出 | D51: 2,308
A52: 地方政府向国际组织借款收入 | B52: 0
A53: 债务转贷收入 | B53: 262,742 | C53: 债务转贷支出
A54: 地方政府一般债务转贷收入 | B54: 262,742 | C54: 地方政府一般债券转贷支出
A55: 动用预算稳定调节基金 | B55: 11,636 | C55: 安排预算稳定调节基金 | D55: 9,137
A56: 接受其他地区援助收入 | B56: 0 | C56: 援助其他地区支出 | D56: 4,493
B57: 0 | C57: 年终结余 | D57: 276,659
A58: 收 入 总 计 | B58: 2,098,777 | C58: 支 出 总 计 | D58: 2,098,777

Sheet 46.全市经济分类支出
A1: 2022年攀枝花市一般公共预算经济分类科目支出执行情况表
E2: 单位：万元，%
A3: 科目 | B3: 年初预算数 | C3: 变动预算数 | D3: 执行数 | E3: 为变动预算 | F3: 为上年决算
A4: 机关工资福利支出 | B4: 315,582 | C4: 317,143 | D4: 319,582 | E4: 100.8 | F4: 115.0
A5: 工资奖金津补贴 | B5: 224,165 | C5: 216,100 | D5: 220,339 | E5: 102.0 | F5: 114.1
A6: 社会保障缴费 | B6: 41,021 | C6: 46,575 | D6: 45,722 | E6: 98.2 | F6: 127.4
A7: 住房公积金 | B7: 23,654 | C7: 24,312 | D7: 23,953 | E7: 98.5 | F7: 124.9
A8: 其他工资福利支出 | B8: 26,742 | C8: 30,156 | D8: 29,568 | E8: 98.1 | F8: 99.1
A9: 机关商品和服务支出 | B9: 248,736 | C9: 283,794 | D9: 277,750 | E9: 97.9 | F9: 75.2
A10: 办公经费 | B10: 25,421 | C10: 35,786 | D10: 35,000 | E10: 97.8 | F10: 111.6
A11: 会议费 | B11: 1,100 | C11: 1,173 | D11: 1,173 | E11: 100.0 | F11: 101.5
A12: 培训费 | B12: 600 | C12: 643 | D12: 643 | E12: 100.0 | F12: 202.1
A13: 专用材料购置费 | B13: 1,350 | C13: 682 | D13: 682 | E13: 100.0 | F13: 120.7
A14: 委托业务费 | B14: 24,502 | C14: 18,616 | D14: 18,606 | E14: 99.9 | F14: 97.6
A15: 公务接待费 | B15: 1,128 | C15: 918 | D15: 795 | E15: 86.6 | F15: 99.4
A16: 因公出国（境）费用
A17: 公务用车运行维护费 | B17: 3,641 | C17: 3,428 | D17: 3,050 | E17: 89.0 | F17: 98.6
A18: 维修（护）费 | B18: 1,997 | C18: 711 | D18: 711 | E18: 100.0 | F18: 76.7
A19: 其他商品和服务支出 | B19: 188,997 | C19: 221,836 | D19: 217,090 | E19: 97.9 | F19: 69.6
A20: 机关资本性支出（一） | B20: 39,062 | C20: 122,282 | D20: 122,369 | E20: 100.1 | F20: 68.7
A21: 房屋建筑物购建 | B21: 2,251 | C21: 3,567 | D21: 3,567 | E21: 100.0 | F21: 42.6
A22: 基础设施建设 | B22: 24,200 | C22: 29,192 | D22: 29,192 | E22: 100.0 | F22: 56.0
A23: 公务用车购置 | B23: 890 | C23: 219 | D23: 219 | E23: 100.0 | F23: 79.6
A24: 土地征迁补偿和安置支出 | B24: 2,103 | C24: 4,356 | D24: 4,356 | E24: 100.0 | F24: 135.2
A25: 设备购置 | B25: 2,159 | C25: 1,808 | D25: 1,808 | E25: 100.0 | F25: 170.6
A26: 大型修缮 | B26: 634 | C26: 426 | D26: 426 | E26: 100.0 | F26: 157.2
A27: 其他资本性支出 | B27: 6,825 | C27: 82,714 | D27: 82,801 | E27: 100.1 | F27: 73.4
A28: 机关资本性支出（二） | B28: 21,985 | C28: 12,383 | D28: 12,383 | E28: 100.0 | F28: 25.5
A29: 房屋建筑物购建 | B29: 2,905 | C29: 1,500 | D29: 1,500 | E29: 100.0 | F29: 46.7
A30: 基础设施建设 | B30: 3,755 | C30: 6,233 | D30: 6,233 | E30: 100.0 | F30: 23.0
A31: 公务用车购置 | B31: 47
A32: 设备购置 | B32: 47 | C32: 3 | D32: 3 | E32: 100.0
A33: 大型修缮 | B33: 111
A34: 其他资本性支出 | B34: 15,120 | C34: 4,647 | D34: 4,647 | E34: 100.0 | F34: 26.1
A35: 对事业单位经常性补助 | B35: 394,090 | C35: 441,960 | D35: 442,964 | E35: 100.2 | F35: 89.1
A36: 工资福利支出 | B36: 332,540 | C36: 331,863 | D36: 332,410 | E36: 100.2 | F36: 99.3
A37: 商品和服务支出 | B37: 56,000 | C37: 103,334 | D37: 103,291 | E37: 100.0 | F37: 71.0
A38: 其他对事业单位补助 | B38: 5,550 | C38: 6,763 | D38: 7,263 | E38: 107.4 | F38: 43.4
A39: 对事业单位资本性补助 | B39: 12,800 | C39: 8,609 | D39: 9,059 | E39: 105.2 | F39: 44.6
A40: 资本性支出（一） | B40: 7,800 | C40: 3,045 | D40: 2,995 | E40: 98.4 | F40: 56.0
A41: 资本性支出（二） | B41: 5,000 | C41: 5,564 | D41: 6,064 | E41: 109.0 | F41: 40.5
A42: 对企业补助 | B42: 20,050 | C42: 6,677 | D42: 6,674 | E42: 100.0 | F42: 48.0
A43: 费用补贴 | B43: 3,200 | C43: 2,116 | D43: 2,116 | E43: 100.0 | F43: 63.7
A44: 利息补贴 | B44: 850 | C44: 1,485 | D44: 1,482 | E44: 99.8 | F44: 119.0
A45: 其他对企业补助 | B45: 16,000 | C45: 3,076 | D45: 3,076 | E45: 100.0 | F45: 32.9
A46: 对企业资本性支出 | B46: 38,450 | C46: 10,000 | D46: 10,000 | E46: 100.0 | F46: 13.3
A47: 对企业资本性支出（一）
A48: 对企业资本性支出（二） | B48: 38,450 | C48: 10,000 | D48: 10,000 | E48: 100.0 | F48: 28.2
A49: 对个人和家庭的补助 | B49: 95,682 | C49: 111,867 | D49: 111,233 | E49: 99.4 | F49: 95.6
A50: 社会福利和救助 | B50: 38,652 | C50: 34,217 | D50: 34,169 | E50: 99.9 | F50: 90.2
A51: 助学金 | B51: 4,500 | C51: 4,481 | D51: 4,422 | E51: 98.7 | F51: 70.2
A52: 个人农业生产补贴 | B52: 2,120 | C52: 3,863 | D52: 3,863 | E52: 100.0 | F52: 150.8
A53: 离退休费 | B53: 25,000 | C53: 31,949 | D53: 31,997 | E53: 100.2 | F53: 90.7
A54: 其他对个人和家庭补助 | B54: 25,410 | C54: 37,357 | D54: 36,782 | E54: 98.5 | F54: 107.2
A55: 对社会保障基金补助 | B55: 40,905 | C55: 41,858 | D55: 39,985 | E55: 95.5 | F55: 78.5
A56: 对社会保险基金补助 | B56: 40,905 | C56: 41,858 | D56: 39,985 | E56: 95.5 | F56: 80.3
A57: 补充全国社会保障基金
A58: 对机关事业单位职业年金的补助
A59: 债务利息及费用支出 | B59: 42,584 | C59: 60,396 | D59: 57,778 | E59: 95.7 | F59: 111.6
A60: 国内债务付息 | B60: 42,437 | C60: 48,745 | D60: 46,604 | E60: 95.6 | F60: 90.4
A61: 国外债务付息 | C61: 11,476 | D61: 10,999 | E61: 95.8
A62: 国内债务发行费用 | B62: 147 | C62: 175 | D62: 175 | E62: 100.0 | F62: 102.3
A63: 国外债务发行费用
A64: 其他支出 | B64: 13,829 | C64: 12,007 | D64: 12,007 | E64: 100.0 | F64: 69.3
A65: 赠与
A66: 国家赔偿费用支出
A67: 对民间非营利组织和群众性自治组织补贴 | B67: 1,350 | C67: 249 | D67: 249 | E67: 100.0 | F67: 34.8
A68: 其他支出 | B68: 12,479 | C68: 11,758 | D68: 11,758 | E68: 100.0 | F68: 70.7
A69: 一般公共预算支出 | B69: 1,283,755 | C69: 1,428,975 | D69: 1,421,783 | E69: 99.5 | F69: 82.8

Sheet 47.全市经济分类（基本）支出
A1: 2022年攀枝花市一般公共预算经济分类科目（基本）支出执行情况表
E2: 单位：万元，%
A3: 科目 | B3: 年初预算数 | C3: 变动预算数 | D3: 执行数 | E3: 为变动预算 | F3: 为上年决算
A4: 机关工资福利支出 | B4: 269,308 | C4: 281,343 | D4: 285,317 | E4: 101.4 | F4: 112.5
A5: 工资奖金津补贴 | B5: 177,980 | C5: 186,100 | D5: 189,518 | E5: 101.8 | F5: 108.1
A6: 社会保障缴费 | B6: 40,965 | C6: 41,575 | D6: 42,449 | E6: 102.1 | F6: 132.5
A7: 住房公积金 | B7: 23,654 | C7: 24,312 | D7: 23,953 | E7: 98.5 | F7: 124.9
A8: 其他工资福利支出 | B8: 26,709 | C8: 29,356 | D8: 29,397 | E8: 100.1 | F8: 108.4
A9: 机关商品和服务支出 | B9: 84,697 | C9: 96,154 | D9: 56,487 | E9: 58.7 | F9: 71.9
A10: 办公经费 | B10: 25,421 | C10: 35,786 | D10: 35,000 | E10: 97.8 | F10: 129.0
A11: 会议费 | B11: 485 | C11: 578 | D11: 181 | E11: 31.3 | F11: 208.0
A12: 培训费 | B12: 438 | C12: 465 | D12: 97 | E12: 20.9 | F12: 71.9
A13: 专用材料购置费 | B13: 100 | C13: 112 | D13: 2
A14: 委托业务费 | B14: 3,881 | C14: 5,046 | D14: 1,183 | E14: 23.4 | F14: 114.7
A15: 公务接待费 | B15: 805 | C15: 797 | D15: 685 | E15: 85.9 | F15: 97.3
A16: 因公出国（境）费用 | B16: 25
A17: 公务用车运行维护费 | B17: 3,488 | C17: 3,299 | D17: 2,579 | E17: 78.2 | F17: 88.1
A18: 维修（护）费 | B18: 370 | C18: 467 | D18: 141 | E18: 30.2 | F18: 141.0
A19: 其他商品和服务支出 | B19: 49,684 | C19: 49,603 | D19: 16,619 | E19: 33.5 | F19: 35.8
A20: 机关资本性支出（一）
A21: 房屋建筑物购建
A22: 基础设施建设
A23: 公务用车购置
A24: 土地征迁补偿和安置支出
A25: 设备购置
A26: 大型修缮
A27: 其他资本性支出
A28: 机关资本性支出（二）
A29: 房屋建筑物购建
A30: 基础设施建设
A31: 公务用车购置
A32: 设备购置
A33: 大型修缮
A34: 其他资本性支出
A35: 对事业单位经常性补助 | B35: 343,926 | C35: 344,162 | D35: 344,674 | E35: 100.1 | F35: 98.7
A36: 工资福利支出 | B36: 297,613 | C36: 306,098 | D36: 306,569 | E36: 100.2 | F36: 100.0
A37: 商品和服务支出 | B37: 43,313 | C37: 32,301 | D37: 32,372 | E37: 100.2 | F37: 89.2
A38: 其他对事业单位补助 | B38: 3,000 | C38: 5,763 | D38: 5,733 | E38: 99.5 | F38: 88.1
A39: 对事业单位资本性补助
A40: 资本性支出（一）
A41: 资本性支出（二）
A42: 对企业补助
A43: 费用补贴
A44: 利息补贴
A45: 其他对企业补助
A46: 对企业资本性支出
A47: 对企业资本性支出（一）
A48: 对企业资本性支出（二）
A49: 对个人和家庭的补助 | B49: 49,690 | C49: 52,707 | D49: 52,318 | E49: 99.3 | F49: 105.8
A50: 社会福利和救助 | B50: 11,973 | C50: 15,138 | D50: 15,085 | E50: 99.6 | F50: 148.1
A51: 助学金 | B51: 4,500 | C51: 4,481 | D51: 4,422 | E51: 98.7 | F51: 138.0
A52: 个人农业生产补贴
A53: 离退休费 | B53: 27,156 | C53: 28,080 | D53: 27,825 | E53: 99.1 | F53: 89.9
A54: 其他对个人和家庭补助 | B54: 6,061 | C54: 5,008 | D54: 4,986 | E54: 99.6 | F54: 97.2
A55: 对社会保障基金补助
A56: 对社会保险基金补助
A57: 补充全国社会保障基金
A58: 对机关事业单位职业年金的补助
A59: 债务利息及费用支出
A60: 国内债务付息
A61: 国外债务付息
A62: 国内债务发行费用
A63: 国外债务发行费用
A64: 其他支出
A65: 赠与
A66: 国家赔偿费用支出
A67: 对民间非营利组织和群众性自治组织补贴
A68: 其他支出
A69: 一般公共预算支出 | B69: 747,621 | C69: 774,366 | D69: 738,796 | E69: 95.4 | F69: 101.1

Sheet 48.省对市税返和转移支付补助
A1: 2022年省对市税返和转移支付补助执行情况表
B2: 单位：万元
A3: 科 目 | B3: 执行数
A4: 上级补助收入 | B4: 860,195
A5: 返还性收入 | B5: 28,611
A6: 所得税基数返还收入 | B6: 9,437
A7: 成品油税费改革税收返还收入 | B7: 21,087
A8: 增值税税收返还收入 | B8: 38,251
A9: 消费税税收返还收入 | B9: 966
A10: 增值税“五五分享”税收返还收入 | B10: -28,149
A11: 其他返还性收入 | B11: -12,981
A12: 一般性转移支付收入 | B12: 695,384
A13: 均衡性转移支付收入 | B13: 185,181
A14: 县级基本财力保障机制奖补资金收入 | B14: 32,098
A15: 结算补助收入 | B15: 58,217
A16: 资源枯竭型城市转移支付补助收入 | B16: 12,688
A17: 企业事业单位划转补助收入 | B17: 22,453
A18: 产粮(油)大县奖励资金收入 | B18: 142
A19: 重点生态功能区转移支付收入 | B19: 9,961
A20: 固定数额补助收入 | B20: 54,977
A21: 欠发达地区转移支付收入 | B21: 14,888
A22: 公共安全共同财政事权转移支付收入 | B22: 12,552
A23: 教育共同财政事权转移支付收入 | B23: 43,939
A24: 科学技术共同财政事权转移支付收入 | B24: 120
A25: 文化旅游体育与传媒共同财政事权转移支付收入 | B25: 2,780
A26: 社会保障和就业共同财政事权转移支付收入 | B26: 38,719
A27: 医疗卫生共同财政事权转移支付收入 | B27: 58,890
A28: 节能环保共同财政事权转移支付收入 | B28: 1,441
A29: 农林水共同财政事权转移支付收入 | B29: 72,375
A30: 交通运输共同财政事权转移支付收入 | B30: 12,835
A31: 自然资源海洋气象等共同财政事权转移支付收入 | B31: 91
A32: 住房保障共同财政事权转移支付收入 | B32: 10,206
A33: 增值税留抵退税转移支付收入 | B33: 16,826
A34: 其他退税减税降费转移支付收入 | B34: 14,599
A35: 补充县区财力转移支付收入 | B35: 15,792
A36: 其他一般性转移支付收入 | B36: 3,614
A37: 专项转移支付收入 | B37: 136,200
A38: 一般公共服务 | B38: 1,570
A39: 国防 | B39: 100
A40: 公共安全 | B40: 235
A41: 科学技术 | B41: 900
A42: 文化旅游体育与传媒 | B42: 221
A43: 社会保障和就业 | B43: 105
A44: 卫生健康 | B44: 2,308
A45: 节能环保 | B45: 22,767
A46: 城乡社区 | B46: 20,091
A47: 农林水 | B47: 18,923
A48: 交通运输 | B48: 17,707
A49: 资源勘探工业信息等 | B49: 8,986
A50: 商业服务业等 | B50: 4,386
A51: 住房保障 | B51: 26,645
A52: 粮油物资储备 | B52: 265
A53: 灾害防治及应急管理 | B53: 7,875
A54: 其他收入 | B54: 3,117

Sheet 49.市本级一般公共预算收入
A1: 2022年攀枝花市市本级一般公共预算收入执行情况表
E2: 单位：万元，%
A3: 科目 | B3: 年初预算数 | C3: 变动预算数 | D3: 执行数 | E3: 为变动预算 | F3: 为上年决算
A4: 一、税收收入 | B4: 220,000 | C4: 196,856 | D4: 200,616 | E4: 101.9 | F4: 120.6
A5: 增值税 | B5: 100,300 | C5: 73,862 | D5: 74,005 | E5: 100.2 | F5: 117.6
A6: 消费税
A7: 企业所得税 | B7: 20,000 | C7: 23,500 | D7: 23,514 | E7: 100.1 | F7: 122.3
A8: 个人所得税 | B8: 5,000 | C8: 5,000 | D8: 5,053 | E8: 101.1 | F8: 112.8
A9: 资源税 | B9: 16,000 | C9: 15,000 | D9: 15,307 | E9: 102.0 | F9: 118.5
A10: 城市维护建设税 | B10: 15,500 | C10: 17,800 | D10: 17,786 | E10: 99.9 | F10: 108.5
A11: 房产税 | B11: 7,500 | C11: 10,000 | D11: 10,041 | E11: 100.4 | F11: 145.5
A12: 印花税 | B12: 10,000 | C12: 8,500 | D12: 8,544 | E12: 100.5 | F12: 79.7
A13: 城镇土地使用税 | B13: 19,000 | C13: 18,000 | D13: 18,314 | E13: 101.7 | F13: 196.2
A14: 土地增值税 | B14: 12,000 | C14: 6,000 | D14: 5,925 | E14: 98.8 | F14: 61.4
A15: 车船税 | B15: 2,400 | C15: 2,400 | D15: 2,320 | E15: 96.7 | F15: 100.9
A16: 耕地占用税 | C16: 3,000 | D16: 3,160 | E16: 105.3
A17: 契税 | B17: 9,500 | C17: 11,000 | D17: 13,841 | E17: 125.8 | F17: 156.9
A18: 烟叶税
A19: 环境保护税 | B19: 2,800 | C19: 2,800 | D19: 2,812 | E19: 100.4 | F19: 106.4
A20: 其他税收收入 | C20: -6 | D20: -6 | E20: 100.0 | F20: 42.9
A21: 二、非税收入 | B21: 213,500 | C21: 197,347 | D21: 197,347 | E21: 100.0 | F21: 78.9
A22: 专项收入 | B22: 12,000 | C22: 12,510 | D22: 11,500 | E22: 91.9 | F22: 123.6
A23: 行政事业性收费收入 | B23: 18,000 | C23: 9,637 | D23: 12,237 | E23: 127.0 | F23: 72.1
A24: 罚没收入 | B24: 26,000 | C24: 15,500 | D24: 15,700 | E24: 101.3 | F24: 92.4
A25: 国有资本经营收入
A26: 国有资源（资产）有偿使用收入 | B26: 133,500 | C26: 132,300 | D26: 128,010 | E26: 96.8 | F26: 67.9
A27: 捐赠收入
A28: 政府住房基金收入 | B28: 4,000 | C28: 12,400 | D28: 12,400 | E28: 100.0 | F28: 354.3
A29: 其他收入 | B29: 20,000 | C29: 15,000 | D29: 17,500 | E29: 116.7 | F29: 118.3
A30: 地方一般公共预算收入 | B30: 433,500 | C30: 394,203 | D30: 397,963 | E30: 101.0 | F30: 95.5

Sheet 50.市本级一般公共预算支出
A1: 2022年攀枝花市市本级一般公共预算支出执行情况表
E2: 单位：万元，%
A3: 科目 | B3: 年初预算数 | C3: 变动预算数 | D3: 执行数 | E3: 为变动预算 | F3: 为上年决算
A4: 一般公共服务支出 | B4: 49,526 | C4: 59,946 | D4: 56,830 | E4: 94.8 | F4: 109.8
A5: 人大事务 | B5: 1,753 | C5: 2,101 | D5: 1,921 | E5: 91.4 | F5: 118.9
A6: 行政运行 | B6: 1,283 | C6: 1,580 | D6: 1,428 | E6: 90.4 | F6: 112.1
A7: 一般行政管理事务 | B7: 150 | C7: 219 | D7: 209 | E7: 95.4 | F7: 132.3
A8: 机关服务
A9: 人大会议 | B9: 160 | C9: 203 | D9: 193 | E9: 95.1 | F9: 193.0
A10: 人大立法 | C10: 1 | D10: 1 | E10: 100.0
A11: 人大监督
A12: 人大代表履职能力提升
A13: 代表工作 | B13: 100 | C13: 46 | D13: 43 | E13: 93.5 | F13: 179.2
A14: 人大信访工作
A15: 事业运行 | B15: 60 | C15: 52 | D15: 47 | E15: 90.4 | F15: 130.6
A16: 其他人大事务支出
A17: 政协事务 | B17: 1,714 | C17: 1,640 | D17: 1,507 | E17: 91.9 | F17: 101.1
A18: 行政运行 | B18: 1,207 | C18: 1,184 | D18: 1,079 | E18: 91.1 | F18: 106.5
A19: 一般行政管理事务 | B19: 200 | C19: 209 | D19: 199 | E19: 95.2 | F19: 84.3
A20: 机关服务
A21: 政协会议 | B21: 160 | C21: 156 | D21: 146 | E21: 93.6 | F21: 144.6
A22: 委员视察 | B22: 100 | F22: 0.0
A23: 参政议政 | F23: 0.0
A24: 事业运行 | B24: 47 | C24: 91 | D24: 83 | E24: 91.2 | F24: 224.3
A25: 其他政协事务支出
A26: 政府办公厅（室）及相关机构事务 | B26: 9,386 | C26: 11,701 | D26: 11,161 | E26: 95.4 | F26: 122.6
A27: 行政运行 | B27: 5,350 | C27: 5,580 | D27: 5,492 | E27: 98.4 | F27: 108.5
A28: 一般行政管理事务 | B28: 2,400 | C28: 1,901 | D28: 1,740 | E28: 91.5 | F28: 77.7
A29: 机关服务
A30: 专项服务
A31: 专项业务及机关事务管理
A32: 政务公开审批
A33: 信访事务 | C33: 60 | D33: 54 | E33: 90.0 | F33: 73.0
A34: 参事事务
A35: 事业运行 | B35: 1,550 | C35: 1,780 | D35: 1,654 | E35: 92.9 | F35: 118.2
A36: 其他政府办公厅（室）及相关机构事务支出 | B36: 86 | C36: 2,380 | D36: 2,221 | E36: 93.3 | F36: 675.1
A37: 发展与改革事务 | B37: 4,857 | C37: 2,223 | D37: 2,082 | E37: 93.7 | F37: 101.3
A38: 行政运行 | B38: 1,536 | C38: 1,630 | D38: 1,509 | E38: 92.6 | F38: 95.4
A39: 一般行政管理事务
A40: 机关服务
A41: 战略规划与实施
A42: 日常经济运行调节
A43: 社会事业发展规划
A44: 经济体制改革研究
A45: 物价管理
A46: 事业运行 | B46: 321 | C46: 318 | D46: 308 | E46: 96.9 | F46: 113.2
A47: 其他发展与改革事务支出 | B47: 3,000 | C47: 275 | D47: 265 | E47: 96.4 | F47: 155.9
A48: 统计信息事务 | B48: 967 | C48: 1,167 | D48: 1,145 | E48: 98.1 | F48: 104.8
A49: 行政运行 | B49: 855 | C49: 1,007 | D49: 997 | E49: 99.0 | F49: 119.1
A50: 一般行政管理事务 | C50: 31 | D50: 29 | E50: 93.5 | F50: 241.7
A51: 机关服务
A52: 信息事务
A53: 专项统计业务
A54: 统计管理
A55: 专项普查活动
A56: 统计抽样调查 | C56: 10 | D56: 10 | E56: 100.0
A57: 事业运行 | B57: 112 | C57: 119 | D57: 109 | E57: 91.6 | F57: 106.9
A58: 其他统计信息事务支出
A59: 财政事务 | B59: 2,742 | C59: 3,570 | D59: 3,418 | E59: 95.7 | F59: 109.8
A60: 行政运行 | B60: 2,031 | C60: 2,280 | D60: 2,162 | E60: 94.8 | F60: 108.4
A61: 一般行政管理事务
A62: 机关服务 | C62: 121 | D62: 111 | E62: 91.7
A63: 预算改革业务
A64: 财政国库业务
A65: 财政监察
A66: 信息化建设
A67: 财政委托业务支出 | C67: 85 | D67: 81 | E67: 95.3
A68: 事业运行 | B68: 211 | C68: 294 | D68: 284 | E68: 96.6 | F68: 112.3
A69: 其他财政事务支出 | B69: 500 | C69: 790 | D69: 780 | E69: 98.7 | F69: 103.6
A70: 税收事务 | B70: 0 | C70: 3,261 | D70: 2,980 | E70: 91.4 | F70: 91.2
A71: 行政运行 | C71: 1,980 | D71: 1,806 | E71: 91.2 | F71: 156.1
A72: 一般行政管理事务
A73: 机关服务
A74: 信息化建设
A75: 税收业务
A76: 事业运行 | C76: 1 | D76: 1 | E76: 100.0
A77: 其他税收事务支出 | C77: 1,280 | D77: 1,173 | E77: 91.6 | F77: 57.2
A78: 审计事务 | B78: 1,121 | C78: 1,526 | D78: 1,416 | E78: 92.8 | F78: 96.5
A79: 行政运行 | B79: 1,065 | C79: 1,230 | D79: 1,135 | E79: 92.3 | F79: 106.4
A80: 一般行政管理事务 | C80: 235 | D80: 225 | E80: 95.7 | F80: 64.1
A81: 机关服务
A82: 审计业务
A83: 审计管理
A84: 信息化建设
A85: 事业运行 | B85: 55 | C85: 58 | D85: 53 | E85: 91.4 | F85: 108.2
A86: 其他审计事务支出 | C86: 3 | D86: 3 | E86: 100.0
A87: 海关事务 | B87: 0 | C87: 149 | D87: 139 | E87: 93.3 | F87: 149.5
A88: 行政运行 | C88: 142 | D88: 132 | E88: 93.0 | F88: 287.0
A89: 一般行政管理事务
A90: 机关服务
A91: 缉私办案
A92: 口岸管理
A93: 信息化建设
A94: 海关关务
A95: 关税征管
A96: 海关监管
A97: 检验检疫
A98: 事业运行
A99: 其他海关事务支出 | C99: 7 | D99: 7 | E99: 100.0
A100: 纪检监察事务 | B100: 1,992 | C100: 3,212 | D100: 3,014 | E100: 93.8 | F100: 115.5
A101: 行政运行 | B101: 1,776 | C101: 1,821 | D101: 1,665 | E101: 91.4 | F101: 101.7
A102: 一般行政管理事务 | C102: 416 | D102: 406 | E102: 97.6 | F102: 82.9
A103: 机关服务
A104: 大案要案查处 | C104: 499 | D104: 489 | E104: 98.0
A105: 派驻派出机构 | B105: 3 | C105: 1 | D105: 1 | E105: 100.0
A106: 巡视工作 | C106: 218 | D106: 208 | E106: 95.4 | F106: 160.0
A107: 事业运行 | B107: 210 | C107: 207 | D107: 197 | E107: 95.2 | F107: 122.4
A108: 其他纪检监察事务支出 | B108: 3 | C108: 50 | D108: 48 | E108: 96.0 | F108: 54.5
A109: 商贸事务 | B109: 1,976 | C109: 3,358 | D109: 3,073 | E109: 91.5 | F109: 85.3
A110: 行政运行 | B110: 723 | C110: 2,530 | D110: 2,280 | E110: 90.1 | F110: 95.2
A111: 一般行政管理事务
A112: 机关服务
A113: 对外贸易管理
A114: 国际经济合作
A115: 外资管理
A116: 国内贸易管理
A117: 招商引资 | B117: 800 | C117: 358 | D117: 333 | E117: 93.0 | F117: 40.8
A118: 事业运行 | B118: 453 | C118: 464 | D118: 454 | E118: 97.8 | F118: 115.5
A119: 其他商贸事务支出 | C119: 6 | D119: 6 | E119: 100.0
A120: 知识产权事务 | B120: 0 | C120: 8 | D120: 8 | E120: 100.0 | F120: 160.0
A121: 行政运行
A122: 一般行政管理事务
A123: 机关服务
A124: 专利审批
A125: 知识产权战略和规划
A126: 国际合作与交流
A127: 知识产权宏观管理
A128: 商标管理
A129: 原产地地理标志管理
A130: 事业运行
A131: 其他知识产权事务支出 | C131: 8 | D131: 8 | E131: 100.0 | F131: 160.0
A132: 民族事务 | B132: 476 | C132: 547 | D132: 523 | E132: 95.6 | F132: 98.7
A133: 行政运行 | B133: 363 | C133: 363 | D133: 353 | E133: 97.2 | F133: 93.4
A134: 一般行政管理事务
A135: 机关服务
A136: 民族工作专项
A137: 事业运行 | B137: 112 | C137: 119 | D137: 109 | E137: 91.6 | F137: 112.4
A138: 其他民族事务支出 | C138: 65 | D138: 61 | E138: 93.8 | F138: 110.9
A139: 港澳台事务 | B139: 0 | C139: 0 | D139: 0
A140: 档案事务 | B140: 551 | C140: 633 | D140: 618 | E140: 97.6 | F140: 103.2
A141: 行政运行 | B141: 549 | C141: 551 | D141: 541 | E141: 98.2 | F141: 104.6
A142: 一般行政管理事务
A143: 机关服务
A144: 档案馆 | B144: 2 | C144: 2 | D144: 2 | E144: 100.0
A145: 其他档案事务支出 | C145: 80 | D145: 75 | E145: 93.8 | F145: 97.4
A146: 民主党派及工商联事务 | B146: 0 | C146: 11 | D146: 11 | E146: 100.0
A147: 行政运行
A148: 一般行政管理事务 | C148: 11 | D148: 11 | E148: 100.0
A149: 机关服务
A150: 参政议政
A151: 事业运行
A152: 其他民主党派及工商联事务支出
A153: 群众团体事务 | B153: 1,242 | C153: 1,523 | D153: 1,493 | E153: 98.0 | F153: 101.4
A154: 行政运行 | B154: 612 | C154: 650 | D154: 640 | E154: 98.5 | F154: 110.5
A155: 一般行政管理事务 | C155: 2 | D155: 2 | E155: 100.0
A156: 机关服务
A157: 工会事务
A158: 事业运行 | B158: 630 | C158: 681 | D158: 671 | E158: 98.5 | F158: 130.5
A159: 其他群众团体事务支出 | C159: 190 | D159: 180 | E159: 94.7 | F159: 67.2
A160: 党委办公厅（室）及相关机构事务 | B160: 4,250 | C160: 5,153 | D160: 4,978 | E160: 96.6 | F160: 103.4
A161: 行政运行 | B161: 3,507 | C161: 4,080 | D161: 3,935 | E161: 96.4 | F161: 97.2
A162: 一般行政管理事务 | B162: 600 | C162: 576 | D162: 566 | E162: 98.3 | F162: 80.9
A163: 机关服务
A164: 专项业务 | C164: 207 | D164: 197 | E164: 95.2
A165: 事业运行 | B165: 143 | C165: 287 | D165: 277 | E165: 96.5
A166: 其他党委办公厅（室）及相关机构事务支出 | C166: 3 | D166: 3 | E166: 100.0
A167: 组织事务 | B167: 2,321 | C167: 2,010 | D167: 1,902 | E167: 94.6 | F167: 79.6
A168: 行政运行 | B168: 1,258 | C168: 1,380 | D168: 1,289 | E168: 93.4 | F168: 103.8
A169: 一般行政管理事务 | B169: 1,000 | C169: 345 | D169: 341 | E169: 98.8
A170: 机关服务
A171: 公务员事务
A172: 事业运行 | B172: 63 | C172: 65 | D172: 62 | E172: 95.4 | F172: 100.0
A173: 其他组织事务支出 | C173: 220 | D173: 210 | E173: 95.5
A174: 宣传事务 | B174: 4,070 | C174: 2,634 | D174: 2,493 | E174: 94.6 | F174: 158.4
A175: 行政运行 | B175: 754 | C175: 829 | D175: 819 | E175: 98.8 | F175: 118.0
A176: 一般行政管理事务
A177: 机关服务
A178: 宣传管理
A179: 事业运行 | B179: 316 | C179: 315 | D179: 305 | E179: 96.8 | F179: 116.0
A180: 其他宣传事务支出 | B180: 3,000 | C180: 1,490 | D180: 1,369 | E180: 91.9 | F180: 264.3
A181: 统战事务 | B181: 1,544 | C181: 1,799 | D181: 1,655 | E181: 92.0 | F181: 106.4
A182: 行政运行 | B182: 1,399 | C182: 1,580 | D182: 1,456 | E182: 92.2 | F182: 106.0
A183: 一般行政管理事务 | C183: 70 | D183: 60 | E183: 85.7 | F183: 111.1
A184: 机关服务
A185: 宗教事务
A186: 华侨事务
A187: 事业运行 | B187: 146 | C187: 149 | D187: 139 | E187: 93.3 | F187: 107.8
A188: 其他统战事务支出
A189: 对外联络事务 | B189: 6 | C189: 1 | D189: 1 | E189: 100.0
A190: 行政运行 | B190: 5 | C190: 1 | D190: 1 | E190: 100.0
A191: 一般行政管理事务
A192: 机关服务
A193: 事业运行 | B193: 1
A194: 其他对外联络事务支出
A195: 其他共产党事务支出（款） | B195: 431 | C195: 448 | D195: 428 | E195: 95.5 | F195: 116.0
A196: 行政运行 | B196: 289 | C196: 312 | D196: 302 | E196: 96.8 | F196: 111.0
A197: 一般行政管理事务 | C197: 7 | D197: 7 | E197: 100.0
A198: 机关服务
A199: 事业运行 | B199: 141 | C199: 129 | D199: 119 | E199: 92.2 | F199: 122.7
A200: 其他共产党事务支出（项）
... 959 more rows

Sheet 51.市本级一般公用预算收支平衡
A1: 2022年攀枝花市市本级一般公共预算收支平衡表
A2: 单位：万元
A3: 科目 | B3: 执行数 | C3: 科目 | D3: 执行数
A4: 一般公共预算收入 | B4: =361452+30704+2047+3760 -> 397,963 | C4: 一般公共预算支出 | D4: =B62-D38-D46-D60-D5-D59-D53-D61 -> 583,700
A5: 上级补助收入 | B5: =B6+B13+B37 -> 602,176 | C5: 补助下级支出 | D5: 343,500
A6: 返还性收入 | B6: =SUM(B7:B12) -> 29,646 | C6: 返还性支出 | D6: 12,739
A7: 所得税基数返还收入 | B7: 9,428 | C7: 所得税基数返还支出 | D7: 3,865
A8: 成品油税费改革税收返还收入 | B8: 19,263 | C8: 成品油税费改革税收返还支出 | D8: 473
A9: 增值税税收返还收入 | B9: 28,459 | C9: 增值税税收返还支出 | D9: 6,058
A10: 消费税税收返还收入 | B10: 965 | C10: 消费税税收返还支出 | D10: 171
A11: 增值税“五五分享”税收返还收入 | B11: -15,973 | C11: 增值税“五五分享”税收返还支出 | D11: 7,499
A12: 其他返还性收入 | B12: -12,496 | C12: 其他返还性支出 | D12: -5,327
A13: 一般性转移支付收入 | B13: =SUM(B14:B36) -> 473,987 | C13: 一般性转移支付支出 | D13: 244,766
A14: 均衡性转移支付收入 | B14: 135,831 | C14: 均衡性转移支付支出 | D14: 95,927
A15: 县级基本财力保障机制奖补资金收入 | B15: 12,137 | C15: 县级基本财力保障机制奖补资金支出 | D15: 12,137
A16: 结算补助收入 | B16: 58,438 | C16: 结算补助支出 | D16: 11,047
A17: 资源枯竭型城市转移支付补助收入 | B17: 7,688 | C17: 资源枯竭型城市转移支付补助支出 | D17: 7,688
A18: 企业事业单位划转补助收入 | B18: 22,315 | C18: 企业事业单位划转补助支出 | D18: 11,669
A19: 产粮(油)大县奖励资金收入 | B19: 125 | C19: 产粮(油)大县奖励资金支出 | D19: 22
A20: 重点生态功能区转移支付收入 | B20: 7,561 | C20: 重点生态功能区转移支付支出 | D20: 4,535
A21: 固定数额补助收入 | B21: 32,500 | C21: 固定数额补助支出 | D21: 13,240
A22: 欠发达地区转移支付支出 | B22: 3,961 | C22: 欠发达地区转移支付支出 | D22: 3,961
A23: 公共安全共同财政事权转移支付收入 | B23: 9,934 | C23: 公共安全共同财政事权转移支付支出 | D23: 447
A24: 教育共同财政事权转移支付收入 | B24: 30,484 | C24: 教育共同财政事权转移支付支出 | D24: 10,735
A25: 文化旅游体育与传媒共同财政事权转移支付收入 | B25: 2,082 | C25: 文化旅游体育与传媒共同财政事权转移支付支出 | D25: 632
A26: 社会保障和就业共同财政事权转移支付收入 | B26: 27,250 | C26: 社会保障和就业共同财政事权转移支付支出 | D26: 15,125
A27: 医疗卫生共同财政事权转移支付收入 | B27: 49,962 | C27: 医疗卫生共同财政事权转移支付支出 | D27: 10,642
A28: 节能环保共同财政事权转移支付收入 | B28: 969 | C28: 节能环保共同财政事权转移支付支出
A29: 农林水共同财政事权转移支付收入 | B29: 21,160 | C29: 农林水共同财政事权转移支付支出 | D29: 17,011
A30: 交通运输共同财政事权转移支付收入 | B30: 8,443 | C30: 交通运输共同财政事权转移支付支出 | D30: 1,861
A31: 自然资源海洋气象等共同财政事权转移支付收入 | B31: 91 | C31: 自然资源海洋气象等共同财政事权转移支付支出 | D31: 8
A32: 住房保障共同财政事权转移支付收入 | B32: 9,547 | C32: 住房保障共同财政事权转移支付支出 | D32: 6,097
A33: 增值税留抵退税转移支付收入 | B33: 13,656 | C33: 增值税留抵退税转移支付支出 | D33: 7,549
A34: 其他退税减税降费转移支付收入 | B34: 9,827 | C34: 其他退税减税降费转移支付支出 | D34: 5,175
A35: 补充县区财力转移支付收入 | B35: 8,455 | C35: 补充县区财力转移支付支出 | D35: 8,455
A36: 其他一般性转移支付收入 | B36: 1,571 | C36: 其他一般性转移支付支出 | D36: 803
A37: 专项转移支付收入 | B37: 98,543 | C37: 专项转移支付支出 | D37: 85,995
A38: 下级上解收入 | B38: 41,951 | C38: 上解上级支出 | D38: 87,520
A39: 体制上解收入 | C39: 体制上解支出
A40: 专项上解收入 | B40: 41,951 | C40: 专项上解支出 | D40: 87,520
A41: 上年结余 | B41: 57,891
A42: 调入资金 | B42: 750 | C42: 调出资金
A43: 从政府性基金预算调入
A44: 从国有资本经营预算调入 | B44: 750
A45: 从其他资金调入
A46: 债务收入 | C46: 债务还本支出 | D46: =6409+146646 -> 153,055
A47: 地方政府债务收入 | C47: 地方政府一般债务还本支出 | D47: 153,055
A48: 一般债务收入 | C48: 地方政府一般债券还本支出 | D48: 146,646
A49: 地方政府一般债券收入 | C49: 地方政府向外国政府借款还本支出 | D49: 6,409
A50: 地方政府向外国政府借款收入 | C50: 地方政府向国际组织借款还本支出
A51: 地方政府向国际组织借款收入 | C51: 地方政府其他一般债务还本支出
A52: 地方政府其他一般债务收入
A53: 债务转贷收入 | B53: =B54 -> 197,207 | C53: 债务转贷支出 | D53: =SUM(D54:D57) -> 50,535
A54: 地方政府一般债务转贷收入 | B54: =SUM(B55:B58) -> 197,207 | C54: 地方政府一般债券转贷支出 | D54: 50,535
A55: 地方政府一般债券转贷收入 | B55: 197,207 | C55: 地方政府向外国政府借款转贷支出
A56: 地方政府向外国政府借款转贷收入 | C56: 地方政府向国际组织借款转贷支出
A57: 地方政府向国际组织借款转贷收入 | C57: 地方政府其他一般债务转贷支出
A58: 地方政府其他一般债务转贷收入
A59: 动用预算稳定调节基金 | B59: 1,625 | C59: 安排预算稳定调节基金 | D59: 3,760
A60: 接受其他地区援助收入 | C60: 援助其他地区支出 | D60: 4,493
C61: 年终结余 | D61: =48000+25000 -> 73,000
A62: 收 入 总 计 | B62: =B4+B5+B38+B41+B42+B53+B59 -> 1,299,563 | C62: 支 出 总 计 | D62: =D4+D38+D46+D60+D5+D59+D53+D61 -> 1,299,563

Sheet 52.市本级经济分类科目
A1: 2022年攀枝花市市本级一般公共预算 经济分类科目支出执行情况表
E2: 单位：万元，%
A3: 科 目 | B3: 年初预算数 | C3: 变动预算数 | D3: 执行数 | E3: 为变动预算 | F3: 为上年决算
A4: 机关工资福利支出 | B4: 166,369 | C4: 162,140 | D4: 154,966 | E4: 95.6 | F4: 102.3
A5: 工资奖金津补贴 | B5: 123,100 | C5: 125,000 | D5: 119,566 | E5: 95.7 | F5: 105.5
A6: 社会保障缴费 | B6: 21,030 | C6: 21,000 | D6: 20,147 | E6: 95.9 | F6: 100.7
A7: 住房公积金 | B7: 14,772 | C7: 8,140 | D7: 7,841 | E7: 96.3 | F7: 101.0
A8: 其他工资福利支出 | B8: 7,467 | C8: 8,000 | D8: 7,412 | E8: 92.7 | F8: 70.8
A9: 机关商品和服务支出 | B9: 174,498 | C9: 143,110 | D9: 116,427 | E9: 81.4 | F9: 59.0
A10: 办公经费 | B10: 19,120 | C10: 16,000 | D10: 15,214 | E10: 95.1 | F10: 104.3
A11: 会议费 | B11: 460 | C11: 278 | D11: 278 | E11: 100.0 | F11: 104.5
A12: 培训费 | B12: 100 | C12: 50 | D12: 50 | E12: 100.0 | F12: 119.0
A13: 专用材料购置费
A14: 委托业务费 | B14: 9,709 | C14: 550 | D14: 540 | E14: 98.2 | F14: 79.4
A15: 公务接待费 | B15: 681 | C15: 500 | D15: 500 | E15: 100.0 | F15: 99.8
A16: 因公出国（境）费用
A17: 公务用车运行维护费 | B17: 1,650 | C17: 1,358 | D17: 1,358 | E17: 100.0 | F17: 98.2
A18: 维修（护）费 | B18: 40
A19: 其他商品和服务支出 | B19: 142,738 | C19: 124,374 | D19: 98,487 | E19: 79.2 | F19: 54.7
A20: 机关资本性支出（一） | B20: 14,825 | C20: 36,210 | D20: 36,297 | E20: 100.2 | F20: 87.3
A21: 房屋建筑物购建 | C21: 0 | D21: 0
A22: 基础设施建设 | B22: 8,000 | C22: 8,210 | D22: 8,210 | E22: 100.0 | F22: 61.6
A23: 公务用车购置
A24: 土地征迁补偿和安置支出
A25: 设备购置
A26: 大型修缮
A27: 其他资本性支出 | B27: 6,825 | C27: 28,000 | D27: 28,087 | E27: 100.3 | F27: 100.0
A28: 机关资本性支出（二）
A29: 房屋建筑物购建
A30: 基础设施建设
A31: 公务用车购置
A32: 设备购置
A33: 大型修缮
A34: 其他资本性支出
A35: 对事业单位经常性补助 | B35: 158,915 | C35: 155,000 | D35: 156,004 | E35: 100.6 | F35: 76.0
A36: 工资福利支出 | B36: 119,415 | C36: 120,000 | D36: 120,547 | E36: 100.5 | F36: 100.2
A37: 商品和服务支出 | B37: 36,000 | C37: 31,500 | D37: 31,457 | E37: 99.9 | F37: 44.9
A38: 其他对事业单位补助 | B38: 3,500 | C38: 3,500 | D38: 4,000 | E38: 114.3 | F38: 26.6
A39: 对事业单位资本性补助 | B39: 4,500 | C39: 4,500 | D39: 4,950 | E39: 110.0 | F39: 37.6
A40: 资本性支出（一） | B40: 500 | C40: 500 | D40: 450 | E40: 90.0 | F40: 51.1
A41: 资本性支出（二） | B41: 4,000 | C41: 4,000 | D41: 4,500 | E41: 112.5 | F41: 36.6
A42: 对企业补助 | B42: 1,150 | C42: 1,150 | D42: 1,147 | E42: 99.7 | F42: 70.8
A43: 费用补贴 | B43: 300 | C43: 300 | D43: 300 | E43: 100.0 | F43: 71.4
A44: 利息补贴 | B44: 850 | C44: 850 | D44: 847 | E44: 99.6 | F44: 70.6
A45: 其他对企业补助
A46: 对企业资本性支出 | B46: 33,139 | C46: 10,000 | D46: 10,000 | E46: 100.0 | F46: 28.2
A47: 对企业资本性支出（一）
A48: 对企业资本性支出（二） | B48: 33,139 | C48: 10,000 | D48: 10,000 | E48: 100.0 | F48: 28.2
A49: 对个人和家庭的补助 | B49: 36,596 | C49: 32,600 | D49: 31,958 | E49: 98.0 | F49: 90.2
A50: 社会福利和救助 | B50: 1,500 | C50: 1,500 | D50: 1,452 | E50: 96.8 | F50: 126.3
A51: 助学金 | B51: 3,600 | C51: 3,600 | D51: 3,541 | E51: 98.4 | F51: 110.6
A52: 个人农业生产补贴
A53: 离退休费 | B53: 21,746 | C53: 21,500 | D53: 21,548 | E53: 100.2 | F53: 102.6
A54: 其他对个人和家庭补助 | B54: 9,750 | C54: 6,000 | D54: 5,417 | E54: 90.3 | F54: 53.7
A55: 对社会保障基金补助 | B55: 40,000 | C55: 41,858 | D55: 39,985 | E55: 95.5 | F55: 83.2
A56: 对社会保险基金补助 | B56: 40,000 | C56: 41,858 | D56: 39,985 | E56: 95.5 | F56: 83.2
A57: 补充全国社会保障基金
A58: 对机关事业单位职业年金的补助
A59: 债务利息及费用支出 | B59: 26,158 | C59: 34,524 | D59: 31,906 | E59: 92.4 | F59: 121.1
A60: 国内债务付息 | B60: 26,011 | C60: 28,294 | D60: 26,153 | E60: 92.4 | F60: 99.6
A61: 国外债务付息 | C61: 6,080 | D61: 5,603 | E61: 92.2
A62: 国内债务发行费用 | B62: 147 | C62: 150 | D62: 150 | E62: 100.0 | F62: 185.2
A63: 国外债务发行费用
A64: 其他支出 | B64: 6,000 | C64: 60 | D64: 60 | E64: 100.0
A65: 赠与
A66: 国家赔偿费用支出
A67: 对民间非营利组织和群众性自治组织补贴
A68: 其他支出 | B68: 6,000 | C68: 60 | D68: 60 | E68: 100.0
A69: 一般公共预算支出 | B69: 662,150 | C69: 621,152 | D69: 583,700 | E69: 94.0 | F69: 74.8

Sheet 53.市本级经济分类科目（基本）
A1: 2022年攀枝花市市本级一般公共预算经济分类科目 （基本）支出执行情况表
E2: 单位：万元，%
A3: 科 目 | B3: 年初预算数 | C3: 变动预算数 | D3: 执行数 | E3: 为变动预算 | F3: 为上年决算
A4: 机关工资福利支出 | B4: 133,172 | C4: 126,400 | D4: 126,366 | E4: 100.0 | F4: 97.7
A5: 工资奖金津补贴 | B5: 95,000 | C5: 95,000 | D5: 95,410 | E5: 100.4 | F5: 99.9
A6: 社会保障缴费 | B6: 16,000 | C6: 16,000 | D6: 15,874 | E6: 99.2 | F6: 96.5
A7: 住房公积金 | B7: 14,772 | C7: 8,200 | D7: 7,841 | E7: 95.6 | F7: 101.0
A8: 其他工资福利支出 | B8: 7,400 | C8: 7,200 | D8: 7,241 | E8: 100.6 | F8: 75.4
A9: 机关商品和服务支出 | B9: 25,991 | C9: 22,000 | D9: 21,296 | E9: 96.8 | F9: 94.5
A10: 办公经费 | B10: 19,120 | C10: 16,000 | D10: 15,214 | E10: 95.1 | F10: 104.3
A11: 会议费
A12: 培训费
A13: 专用材料购置费
A14: 委托业务费 | B14: 20 | C14: 20 | D14: 20 | E14: 100.0 | F14: 200.0
A15: 公务接待费 | B15: 481 | C15: 480 | D15: 480 | E15: 100.0 | F15: 99.6
A16: 因公出国（境）费用
A17: 公务用车运行维护费 | B17: 1,370 | C17: 1,300 | D17: 1,324 | E17: 101.8 | F17: 96.2
A18: 维修（护）费
A19: 其他商品和服务支出 | B19: 5,000 | C19: 4,200 | D19: 4,258 | E19: 101.4 | F19: 70.1
A20: 机关资本性支出（一）
A21: 房屋建筑物购建
A22: 基础设施建设
A23: 公务用车购置
A24: 土地征迁补偿和安置支出
A25: 设备购置
A26: 大型修缮
A27: 其他资本性支出
A28: 机关资本性支出（二）
A29: 房屋建筑物购建
A30: 基础设施建设
A31: 公务用车购置
A32: 设备购置
A33: 大型修缮
A34: 其他资本性支出
A35: 对事业单位经常性补助 | B35: 123,000 | C35: 117,000 | D35: 117,512 | E35: 100.4 | F35: 87.9
A36: 工资福利支出 | B36: 100,000 | C36: 100,000 | D36: 100,471 | E36: 100.5 | F36: 100.2
A37: 商品和服务支出 | B37: 20,000 | C37: 14,500 | D37: 14,571 | E37: 100.5 | F37: 54.1
A38: 其他对事业单位补助 | B38: 3,000 | C38: 2,500 | D38: 2,470 | E38: 98.8 | F38: 38.3
A39: 对事业单位资本性补助
A40: 资本性支出（一）
A41: 资本性支出（二）
A42: 对企业补助
A43: 费用补贴
A44: 利息补贴
A45: 其他对企业补助
A46: 对企业资本性支出
A47: 对企业资本性支出（一）
A48: 对企业资本性支出（二）
A49: 对个人和家庭的补助 | B49: 23,700 | C49: 23,200 | D49: 22,811 | E49: 98.3 | F49: 96.3
A50: 社会福利和救助 | B50: 1,100 | C50: 1,100 | D50: 1,047 | E50: 95.2 | F50: 97.0
A51: 助学金 | B51: 3,600 | C51: 3,600 | D51: 3,541 | E51: 98.4 | F51: 110.6
A52: 个人农业生产补贴
A53: 离退休费 | B53: 17,000 | C53: 17,000 | D53: 16,745 | E53: 98.5 | F53: 95.4
A54: 其他对个人和家庭补助 | B54: 2,000 | C54: 1,500 | D54: 1,478 | E54: 98.5 | F54: 80.0
A55: 对社会保障基金补助
A56: 对社会保险基金补助
A57: 补充全国社会保障基金
A58: 对机关事业单位职业年金的补助
A59: 债务利息及费用支出
A60: 国内债务付息
A61: 国外债务付息
A62: 国内债务发行费用
A63: 国外债务发行费用
A64: 其他支出
A65: 赠与
A66: 国家赔偿费用支出
A67: 对民间非营利组织和群众性自治组织补贴
A68: 其他支出
A69: 一般公共预算支出 | B69: 305,863 | C69: 288,600 | D69: 287,985 | E69: 99.8 | F69: 93.1

Sheet 54.市对区税返和转移支付补助
A1: 2022年市对区税返和转移支付补助执行情况表
B2: 单位：万元
A3: 科 目 | B3: 执行数
B4: 合计 | C4: 东区 | D4: 西区 | E4: 仁和区
A5: 补助下级支出 | B5: 343,500 | C5: 135,945 | D5: 83,265 | E5: 124,289
A6: 返还性支出 | B6: 12,739 | C6: 1,152 | D6: 2,504 | E6: 9,083
A7: 所得税基数返还支出 | B7: 3,865 | C7: 3,970 | D7: 1,040 | E7: -1,145
A8: 成品油税费改革税收返还支出 | B8: 473 | C8: 184 | D8: 97 | E8: 192
A9: 增值税税收返还支出 | B9: 6,058 | C9: 23 | D9: 1,862 | E9: 4,173
A10: 消费税税收返还支出 | B10: 171 | C10: 3 | D10: 157 | E10: 11
A11: 增值税“五五分享”税收返还支出 | B11: 7,499 | C11: 2,327 | D11: -14 | E11: 5,186
A12: 其他返还性支出 | B12: -5,327 | C12: -5,355 | D12: -638 | E12: 666
A13: 一般性转移支付支出 | B13: 244,766 | C13: 86,522 | D13: 67,862 | E13: 90,381
A14: 均衡性转移支付支出 | B14: 95,927 | C14: 30,646 | D14: 36,233 | E14: 29,048
A15: 县级基本财力保障机制奖补资金支出 | B15: 12,137 | C15: 3,677 | D15: 5,266 | E15: 3,194
A16: 结算补助支出 | B16: 13,220 | C16: 8,093 | D16: 1,722 | E16: 3,404
A17: 资源枯竭型城市转移支付补助支出 | B17: 7,688 | C17: 3,000 | D17: 2,604 | E17: 2,084
A18: 企业事业单位划转补助支出 | B18: 9,496 | C18: 11,758 | D18: 4,049 | E18: -6,311
A19: 产粮(油)大县奖励资金支出 | B19: 22 | E19: 22
A20: 重点生态功能区转移支付支出 | B20: 4,535 | C20: 1,260 | D20: 1,260 | E20: 2,015
A21: 固定数额补助支出 | B21: 13,240 | C21: 3,100 | D21: 1,659 | E21: 8,481
A22: 欠发达地区转移支付支出 | B22: 3,961 | C22: 350 | E22: 3,611
A23: 公共安全共同财政事权转移支付支出 | B23: 447 | C23: 158 | D23: 127 | E23: 162
A24: 教育共同财政事权转移支付支出 | B24: 10,735 | C24: 3,586 | D24: 1,961 | E24: 5,188
A25: 文化旅游体育与传媒共同财政事权转移支付支出 | B25: 632 | C25: 11 | D25: 310 | E25: 311
A26: 社会保障和就业共同财政事权转移支付支出 | B26: 15,125 | C26: 5,434 | D26: 3,938 | E26: 5,753
A27: 医疗卫生共同财政事权转移支付支出 | B27: 10,642 | C27: 4,223 | D27: 1,995 | E27: 4,424
A28: 农林水共同财政事权转移支付支出 | B28: 17,011 | C28: 1,096 | D28: 1,783 | E28: 14,132
A29: 交通运输共同财政事权转移支付支出 | B29: 1,861 | C29: 37 | D29: 54 | E29: 1,770
A30: 自然资源海洋气象等共同财政事权转移支付支出 | B30: 8 | C30: 8
A31: 住房保障共同财政事权转移支付支出 | B31: 6,097 | C31: 3,172 | D31: 2,103 | E31: 822
A32: 增值税留抵退税转移支付 | B32: 7,549 | C32: 1,267 | D32: 512 | E32: 5,770
A33: 其他退税减税降费转移支付 | B33: 5,175 | C33: 2,324 | D33: 416 | E33: 2,435
A34: 补充县区财力转移支付 | B34: 8,455 | C34: 3,230 | D34: 1,794 | E34: 3,431
A35: 其他一般性转移支付支出 | B35: 803 | C35: 92 | D35: 76 | E35: 635
A36: 专项转移支付支出 | B36: 85,995 | C36: 48,271 | D36: 12,899 | E36: 24,825
A37: 一般公共服务 | B37: 301 | C37: 179 | D37: 38 | E37: 84
A38: 国防 | B38: 20 | C38: 0 | D38: 20 | E38: 0
A39: 公共安全 | B39: 2,879 | C39: 1,214 | D39: 541 | E39: 1,124
A40: 教育 | B40: 1,300 | C40: 700 | D40: 200 | E40: 400
A41: 科学技术 | B41: 289 | C41: 89 | D41: 20 | E41: 180
A42: 文化旅游体育与传媒 | B42: 67 | C42: 4 | D42: 11 | E42: 52
A43: 社会保障和就业 | B43: 2,627 | C43: 1,704 | D43: 848 | E43: 75
A44: 卫生健康 | B44: 671 | C44: 243 | D44: 122 | E44: 306
A45: 节能环保 | B45: 17,088 | C45: 14,753 | D45: 2,048 | E45: 287
A46: 城乡社区 | B46: 16,350 | C46: 10,334 | D46: 5,087 | E46: 929
A47: 农林水 | B47: 6,969 | C47: 2,142 | D47: 1,442 | E47: 3,385
A48: 交通运输 | B48: 9,986 | C48: 12 | D48: 93 | E48: 9,881
A49: 资源勘探工业信息等 | B49: 3,805 | C49: 3,317 | D49: 438 | E49: 50
A50: 商业服务业等 | B50: 1,173 | C50: 103 | D50: 29 | E50: 1,041
A51: 住房保障 | B51: 21,449 | C51: 13,252 | D51: 1,594 | E51: 6,603
A52: 粮油物资储备 | B52: 200 | C52: 0 | D52: 0 | E52: 200
A53: 灾害防治及应急管理 | B53: 781 | C53: 225 | D53: 368 | E53: 188
A54: 其他支出 | B54: 40 | C54: 0 | D54: 0 | E54: 40

Sheet 55.全市政府性基金收入
A1: 2022年攀枝花市政府性基金预算收入执行情况表
E2: 单位:万元，%
A3: 科 目 | B3: 年初预算数 | C3: 变动预算数 | D3: 执行数 | E3: 为变动预算 | F3: 为上年决算
A4: 国有土地收益基金收入 | B4: 15,540 | C4: 14,510 | D4: 9,740 | E4: 67.1 | F4: 58.8
A5: 农业土地开发资金收入 | B5: 708 | C5: 704 | D5: 1,447 | E5: 205.5 | F5: 171.2
A6: 国有土地使用权出让收入 | B6: 395,752 | C6: 311,070 | D6: 307,788 | E6: 98.9 | F6: 72.5
A7: 城市基础设施配套费收入 | B7: 10,500 | C7: 10,937 | D7: 15,437 | E7: 141.1 | F7: 148.2
A8: 污水处理费收入 | B8: 6,500 | C8: 6,500 | D8: 9,800 | E8: 150.8 | F8: 192.6
A9: 其他政府性基金收入 | C9: 1,500 | D9: 10,709 | E9: 713.9
A10: 政府性基金预算收入 | B10: 429,000 | C10: 345,221 | D10: 354,921 | E10: 102.8 | F10: 77.6

Sheet 56.全市政府性基金支出
A1: 2022年攀枝花市政府性基金预算支出执行情况表
D2: 单位:万元，%
A3: 科 目 | B3: 年初预算数 | C3: 变动预算数 | D3: 执行数 | E3: 为变动预算 | F3: 为上年决算
A4: 科学技术支出 | B4: 0 | C4: 0 | D4: 0
A5: 核电站乏燃料处理处置基金支出 | C5: 0 | D5: 0
A6: 文化旅游体育与传媒支出 | C6: 61 | D6: 67 | E6: 110.4
A7: 国家电影事业发展专项资金安排的支出 | C7: 61 | D7: 67 | E7: 110.4
A8: 资助国产影片放映 | C8: 0 | D8: 0
A9: 资助影院建设 | B9: 0 | C9: 58 | D9: 50 | E9: 86.2
A10: 资助少数民族语电影译制 | B10: 0 | C10: 0 | D10: 0
A11: 其他国家电影事业发展专项资金支出 | C11: 3 | D11: 17
A12: 旅游发展基金支出 | B12: 0 | C12: 0 | D12: 0
A13: 国家电影事业发展专项资金对应专项债务收入安排的支出 | B13: 0 | C13: 0 | D13: 0
A14: 社会保障和就业支出 | B14: 0 | C14: 4,620 | D14: 1,552 | E14: 33.6 | F14: 101.3
A15: 大中型水库移民后期扶持基金支出 | B15: 0 | C15: 4,620 | D15: 1,552 | E15: 33.6 | F15: 101.3
A16: 移民补助 | C16: 2,159 | D16: 1,296 | E16: 60.0 | F16: 84.6
A17: 基础设施建设和经济发展 | C17: 2,461 | D17: 256 | E17: 10.4
A18: 其他大中型水库移民后期扶持基金支出 | B18: 0 | C18: 0 | D18: 0
A19: 小型水库移民扶助基金安排的支出 | B19: 0 | C19: 0 | D19: 0
A20: 小型水库移民扶助基金对应专项债务收入安排的支出 | B20: 0 | C20: 0 | D20: 0
A21: 节能环保支出 | B21: 0 | C21: 0 | D21: 0
A22: 可再生能源电价附加收入安排的支出 | B22: 0 | C22: 0 | D22: 0
A23: 废弃电器电子产品处理基金支出 | B23: 0 | C23: 0 | D23: 0
A24: 城乡社区支出 | B24: 340,355 | C24: 330,416 | D24: 318,532 | E24: 96.4 | F24: 75.8
A25: 国有土地使用权出让收入安排的支出 | B25: 321,807 | C25: 300,001 | D25: 283,365 | E25: 94.5 | F25: 77.5
A26: 征地和拆迁补偿支出 | B26: 50,000 | C26: 17,377 | D26: 17,457 | E26: 100.5 | F26: 50.7
A27: 土地开发支出 | B27: 271,807 | C27: 230,659 | D27: 215,647 | E27: 93.5 | F27: 75.9
A28: 城市建设支出 | C28: 82 | D28: 82 | E28: 100.0 | F28: 25.3
A29: 农业生产发展支出 | C29: 760 | D29: 807 | E29: 106.2
A30: 农村社会事业支出 | C30: 1,638 | D30: 1,638 | E30: 100.0
A31: 农业农村生态环境支出 | C31: 273 | D31: 273 | E31: 100.0
A32: 农村基础设施建设支出 | B32: 0 | C32: 8,657 | D32: 8,412 | E32: 97.2 | F32: 134.9
A33: 补助被征地农民支出 | C33: 9,090 | D33: 9,090 | E33: 100.0 | F33: 113.1
A34: 土地出让业务支出 | B34: 0 | C34: 0
A35: 廉租住房支出 | B35: 0 | C35: 0
A36: 支付破产或改制企业职工安置费 | B36: 0 | C36: 0
A37: 棚户区改造支出 | C37: 12,053 | D37: 10,547 | E37: 87.5 | F37: 76.2
A38: 公共租赁住房支出 | B38: 0 | C38: 0 | D38: 0
A39: 保障性住房租金补贴 | B39: 0 | C39: 0 | D39: 0
A40: 其他国有土地使用权出让收入安排的支出 | C40: 19,412 | D40: 19,412 | E40: 100.0 | F40: 104.3
A41: 国有土地收益基金安排的支出 | B41: 2,040 | C41: 1,010 | D41: 1,010 | E41: 100.0 | F41: 5.0
A42: 征地和拆迁补偿支出 | B42: 2,040 | C42: 1,010 | D42: 1,010 | E42: 100.0 | F42: 29.6
A43: 土地开发支出 | B43: 0 | C43: 0 | D43: 0
A44: 其他国有土地收益基金支出 | B44: 0 | C44: 0 | D44: 0
A45: 农业土地开发资金安排的支出 | B45: 8 | C45: 127 | D45: 127 | E45: 100.0 | F45: 5.9
A46: 城市基础设施配套费安排的支出 | B46: 10,500 | C46: 14,383 | D46: 15,835 | E46: 110.1 | F46: 132.2
A47: 城市公共设施 | C47: 149 | D47: 298 | E47: 200.0 | F47: 310.4
A48: 城市环境卫生 | B48: 5,500 | C48: 5,000 | D48: 4,690 | E48: 93.8 | F48: 135.0
A49: 公有房屋 | B49: 0 | C49: 0 | D49: 0
A50: 城市防洪 | B50: 0 | C50: 0 | D50: 0
A51: 其他城市基础设施配套费安排的支出 | B51: 5,000 | C51: 9,234 | D51: 10,847 | E51: 117.5 | F51: 129.1
A52: 污水处理费安排的支出 | B52: 6,000 | C52: 6,000 | D52: 9,300 | E52: 155.0 | F52: 219.8
A53: 污水处理设施建设和运营 | C53: 0 | D53: 0
A54: 代征手续费 | B54: 0 | C54: 0 | D54: 0
A55: 其他污水处理费安排的支出 | B55: 6,000 | C55: 6,000 | D55: 9,300 | E55: 155.0 | F55: 233.0
A56: 土地储备专项债券收入安排的支出 | B56: 0 | C56: 0 | D56: 0
A57: 棚户区改造专项债券收入安排的支出 | B57: 0 | C57: 8,895 | D57: 8,895 | E57: 100.0 | F57: 54.1
A58: 征地和拆迁补偿支出 | B58: 0 | C58: 0 | D58: 0
A59: 土地开发支出 | B59: 0 | C59: 0 | D59: 0
A60: 其他棚户区改造专项债券收入安排的支出 | B60: 0 | C60: 8,895 | D60: 8,895 | E60: 100.0 | F60: 54.1
A61: 城市基础设施配套费对应专项债务收入安排的支出 | B61: 0 | C61: 0 | D61: 0
A62: 污水处理费对应专项债务收入安排的支出 | B62: 0 | C62: 0 | D62: 0
A63: 国有土地使用权出让收入对应专项债务收入安排的支出 | B63: 0 | C63: 0 | D63: 0
A64: 农林水支出 | B64: 0 | C64: 130 | D64: 122 | E64: 93.8
A65: 大中型水库库区基金安排的支出 | B65: 0 | C65: 130 | D65: 122 | E65: 93.8
A66: 基础设施建设和经济发展 | C66: 40 | D66: 38 | E66: 95.0
A67: 解决移民遗留问题 | B67: 0 | C67: 0 | D67: 0
A68: 库区防护工程维护 | B68: 0 | C68: 0 | D68: 0
A69: 其他大中型水库库区基金支出 | C69: 90 | D69: 84 | E69: 93.3
A70: 三峡水库库区基金支出 | B70: 0 | C70: 0 | D70: 0
A71: 国家重大水利工程建设基金安排的支出 | B71: 0 | C71: 0 | D71: 0
A72: 大中型水库库区基金对应专项债务收入安排的支出 | B72: 0 | C72: 0 | D72: 0
A73: 国家重大水利工程建设基金对应专项债务收入安排的支出 | B73: 0 | C73: 0 | D73: 0
A74: 交通运输支出 | B74: 0 | C74: 0 | D74: 0
A75: 海南省高等级公路车辆通行附加费安排的支出 | B75: 0 | C75: 0 | D75: 0
A76: 车辆通行费安排的支出 | B76: 0 | C76: 0 | D76: 0
A77: 港口建设费安排的支出 | B77: 0 | C77: 0 | D77: 0
A78: 铁路建设基金支出 | B78: 0 | C78: 0 | D78: 0
A79: 船舶油污损害赔偿基金支出 | B79: 0 | C79: 0 | D79: 0
A80: 民航发展基金支出 | B80: 0 | C80: 0 | D80: 0
A81: 海南省高等级公路车辆通行附加费对应专项债务收入安排的支出 | B81: 0 | C81: 0 | D81: 0
A82: 政府收费公路专项债券收入安排的支出 | B82: 0 | C82: 0 | D82: 0
A83: 车辆通行费对应专项债务收入安排的支出 | B83: 0 | C83: 0 | D83: 0
A84: 港口建设费对应专项债务收入安排的支出 | B84: 0 | C84: 0 | D84: 0
A85: 资源勘探工业信息等支出 | B85: 0 | C85: 0 | D85: 0
A86: 农网还贷资金支出 | B86: 0 | C86: 0 | D86: 0
A87: 金融支出 | B87: 0 | C87: 0 | D87: 0
A88: 金融调控支出 | B88: 0 | C88: 0 | D88: 0
A89: 其他支出 | B89: 162 | C89: 160,787 | D89: 161,380 | E89: 100.4 | F89: 475.6
A90: 其他政府性基金及对应专项债务收入安排的支出 | B90: 0 | C90: 159,000 | D90: 159,000 | E90: 100.0 | F90: 492.4
A91: 其他政府性基金安排的支出 | B91: 0 | C91: 0
A92: 其他地方自行试点项目收益专项债券收入安排的支出 | C92: 159,000 | D92: 159,000 | E92: 100.0 | F92: 492.4
A93: 其他政府性基金债务收入安排的支出 | B93: 0 | C93: 0 | D93: 0
A94: 彩票发行销售机构业务费安排的支出 | B94: 0 | C94: 0 | D94: 0
A95: 彩票公益金安排的支出 | B95: 162 | C95: 1,787 | D95: 2,380 | E95: 133.2 | F95: 144.8
A96: 用于补充全国社会保障基金的彩票公益金支出 | B96: 0 | C96: 0 | D96: 0
A97: 用于社会福利的彩票公益金支出 | B97: 66 | C97: 920 | D97: 962 | E97: 104.6 | F97: 148.7
A98: 用于体育事业的彩票公益金支出 | B98: 51 | C98: 275 | D98: 778 | E98: 283.0 | F98: 193.6
A99: 用于教育事业的彩票公益金支出 | B99: 0 | C99: 0 | D99: 0
A100: 用于红十字事业的彩票公益金支出 | B100: 0 | C100: 0 | D100: 0
A101: 用于残疾人事业的彩票公益金支出 | B101: 45 | C101: 124 | D101: 162 | E101: 130.4 | F101: 202.1
A102: 用于文化事业的彩票公益金支出 | B102: 0 | C102: 0 | D102: 0
A103: 用于扶贫的彩票公益金支出 | B103: 0 | C103: 0 | D103: 0
A104: 用于法律援助的彩票公益金支出 | B104: 0 | C104: 0 | D104: 0
A105: 用于城乡医疗救助的彩票公益金支出 | B105: 0 | C105: 138 | D105: 148 | E105: 107.4 | F105: 89.8
A106: 用于其他社会公益事业的彩票公益金支出 | B106: 0 | C106: 330 | D106: 330 | E106: 100.0 | F106: 94.3
A107: 债务付息支出 | B107: 30,192 | C107: 27,696 | D107: 29,985 | E107: 108.3 | F107: 105.2
A108: 地方政府专项债务付息支出 | B108: 30,192 | C108: 27,696 | D108: 29,985 | E108: 108.3 | F108: 105.2
A109: 海南省高等级公路车辆通行附加费债务付息支出 | B109: 0 | C109: 0 | D109: 0
A110: 港口建设费债务付息支出 | B110: 0 | C110: 0 | D110: 0
A111: 国家电影事业发展专项资金债务付息支出 | B111: 0 | C111: 0 | D111: 0
A112: 国有土地使用权出让金债务付息支出 | B112: 22,732 | C112: 18,169 | D112: 20,458 | E112: 112.6 | F112: 99.7
A113: 国有土地收益基金债务付息支出 | B113: 0 | C113: 0 | D113: 0
A114: 农业土地开发资金债务付息支出 | B114: 0 | C114: 0 | D114: 0
A115: 大中型水库库区基金债务付息支出 | B115: 0 | C115: 0 | D115: 0
A116: 城市基础设施配套费债务付息支出 | B116: 0 | C116: 0 | D116: 0
A117: 小型水库移民扶助基金债务付息支出 | B117: 0 | C117: 0 | D117: 0
A118: 国家重大水利工程建设基金债务付息支出 | B118: 0 | C118: 0 | D118: 0
A119: 车辆通行费债务付息支出 | B119: 0 | C119: 0 | D119: 0
A120: 污水处理费债务付息支出 | B120: 0 | C120: 0 | D120: 0
A121: 土地储备专项债券付息支出 | B121: 3,760 | C121: 5,546 | D121: 5,546 | E121: 100.0 | F121: 78.2
A122: 政府收费公路专项债券付息支出 | B122: 0 | C122: 0 | D122: 0
A123: 棚户区改造专项债券付息支出 | B123: 0 | C123: 1,343 | D123: 1,343 | E123: 100.0 | F123: 200.1
A124: 其他地方自行试点项目收益专项债券付息支出 | B124: 3,700 | C124: 2,638 | D124: 2,638 | E124: 100.0 | F124: 1,215.7
A125: 其他政府性基金债务付息支出 | B125: 0 | C125: 0 | D125: 0
A126: 债务发行费用支出 | B126: 33 | C126: 250 | D126: 250 | E126: 100.0 | F126: 274.7
A127: 地方政府专项债务发行费用支出 | B127: 33 | C127: 250 | D127: 250 | E127: 100.0 | F127: 274.7
A128: 海南省高等级公路车辆通行附加费债务发行费用支出 | B128: 0 | C128: 0 | D128: 0
A129: 港口建设费债务发行费用支出 | B129: 0 | C129: 0 | D129: 0
A130: 国家电影事业发展专项资金债务发行费用支出 | B130: 0 | C130: 0 | D130: 0
A131: 国有土地使用权出让金债务发行费用支出 | B131: 0 | C131: 4 | D131: 4 | E131: 100.0 | F131: 25.0
A132: 国有土地收益基金债务发行费用支出 | B132: 0 | C132: 0 | D132: 0
A133: 农业土地开发资金债务发行费用支出 | B133: 0 | C133: 0 | D133: 0
A134: 大中型水库库区基金债务发行费用支出 | B134: 0 | C134: 0 | D134: 0
A135: 城市基础设施配套费债务发行费用支出 | B135: 0 | C135: 0 | D135: 0
A136: 小型水库移民扶助基金债务发行费用支出 | B136: 0 | C136: 0 | D136: 0
A137: 国家重大水利工程建设基金债务发行费用支出 | B137: 0 | C137: 0 | D137: 0
A138: 车辆通行费债务发行费用支出 | B138: 0 | C138: 0 | D138: 0
A139: 污水处理费债务发行费用支出 | B139: 0 | C139: 0 | D139: 0
A140: 土地储备专项债券发行费用支出 | B140: 0 | C140: 0 | D140: 0
A141: 政府收费公路专项债券发行费用支出 | B141: 0 | C141: 0 | D141: 0
A142: 棚户区改造专项债券发行费用支出 | B142: 0 | C142: 0 | D142: 0
A143: 其他地方自行试点项目收益专项债券发行费用支出 | B143: 33 | C143: 246 | D143: 246 | E143: 100.0 | F143: 431.6
A144: 其他政府性基金债务发行费用支出 | B144: 0 | C144: 0 | D144: 0
A145: 抗疫特别国债安排的支出 | B145: 0 | C145: 0 | D145: 0
A146: 基础设施建设 | B146: 0 | C146: 0 | D146: 0
A147: 抗疫相关支出 | B147: 0 | C147: 0 | D147: 0
A148: 政府性基金预算支出 | B148: 370,742 | C148: 523,960 | D148: 511,889 | E148: 97.7 | F148: 105.7

Sheet 57.全市政府性基金收支平衡
A1: 2022年攀枝花市政府性基金预算收支平衡表
A2: 单位：万元
A3: 科 目 | B3: 执行数 | C3: 科 目 | D3: 执行数
A4: 政府性基金预算收入 | B4: 354,921 | C4: 政府性基金预算支出 | D4: 511,889
A5: 政府性基金预算上级补助收入 | B5: 9,403 | C5: 政府性基金预算补助下级支出
A6: 政府性基金预算下级上解收入 | C6: 政府性基金预算上解上级支出
A7: 政府性基金预算上年结余 | B7: 59,576
A8: 政府性基金预算调入资金 | C8: 政府性基金预算调出资金 | D8: 10,000
A9: 一般公共预算调入
A10: 其他调入资金
A11: 债务收入 | C11: 债务还本支出 | D11: 79,726
C12: 地方政府专项债务还本支出 | D12: 79,726
A13: 债务转贷收入 | B13: 199,486 | C13: 债务转贷支出
A14: 地方政府专项债务转贷收入 | B14: 199,486 | C14: 政府性基金预算年终结余 | D14: 21,771
A15: 收 入 总 计 | B15: 623,386 | C15: 支 出 总 计 | D15: 623,386

Sheet 58.省对市政府性基金转移支付补助
A1: 2022年省对市政府性基金预算转移支付补助执行情况表
B2: 单位：万元
A3: 科 目 | B3: 执行数
A4: 政府性基金上级补助收入 | B4: =B5+B10 -> 9,403
A5: 政府性基金转移支付收入 | B5: =SUM(B6:B9) -> 9,403
A6: 文化旅游体育与传媒 | B6: 1,248
A7: 社会保障和就业 | B7: 3,062
A8: 农林水 | B8: 3,100
A9: 其他支出 | B9: 1,993
A10: 抗疫特别国债转移支付收入

Sheet 59.市本级政府性基金收入
A1: 2022年攀枝花市市本级政府性基金预算收入执行情况表
E2: 单位:万元，%
A3: 科目 | B3: 年初预算数 | C3: 变动预算数 | D3: 执行数 | E3: 为变动预算 | F3: 为上年决算
A4: 国有土地收益基金收入 | B4: 13,500 | C4: 13,500 | D4: 8,730 | E4: 64.7 | F4: 66.5
A5: 农业土地开发资金收入 | B5: 700 | C5: 700 | D5: 1,443 | E5: 206.1 | F5: 210.3
A6: 国有土地使用权出让收入 | B6: 145,800 | C6: 145,800 | D6: 142,518 | E6: 97.7 | F6: 63.0
A7: 城市基础设施配套费收入 | B7: 8,000 | C7: 8,000 | D7: 12,500 | E7: 156.3 | F7: 280.3
A8: 污水处理费收入 | B8: 6,000 | C8: 6,000 | D8: 9,300 | E8: 155.0 | F8: 213.7
A9: 其他政府性基金收入 | D9: 9,209
A10: 政府性基金预算收入 | B10: 174,000 | C10: 174,000 | D10: 183,700 | E10: 105.6 | F10: 73.8

Sheet 60.市本级政府性基金支出
A1: 2022年攀枝花市市本级政府性基金支出执行情况表
E2: 单位：万元，%
A3: 科 目 | B3: 年初预算数 | C3: 变动预算数 | D3: 执行数 | E3: 为变动预算 | F3: 为上年决算
A4: 科学技术支出
A5: 核电站乏燃料处理处置基金支出
A6: 文化旅游体育与传媒支出
A7: 国家电影事业发展专项资金安排的支出
A8: 旅游发展基金支出
A9: 国家电影事业发展专项资金对应专项债务收入安排的支出
A10: 社会保障和就业支出
A11: 大中型水库移民后期扶持基金支出
A12: 小型水库移民扶助基金安排的支出
A13: 小型水库移民扶助基金对应专项债务收入安排的支出
A14: 节能环保支出
A15: 可再生能源电价附加收入安排的支出
A16: 废弃电器电子产品处理基金支出
A17: 城乡社区支出 | B17: 136,300 | C17: 136,300 | D17: 145,087 | E17: 106.4 | F17: 74.9
A18: 国有土地使用权出让收入安排的支出 | B18: 122,300 | C18: 122,300 | D18: 123,287 | E18: 100.8 | F18: 74.9
A19: 征地和拆迁补偿支出
A20: 土地开发支出 | B20: 122,300 | C20: 122,300 | D20: 115,652 | E20: 94.6 | F20: 70.8
A21: 城市建设支出
A22: 农村基础设施建设支出 | D22: 7,251
A23: 补助被征地农民支出
A24: 土地出让业务支出
A25: 廉租住房支出
A26: 支付破产或改制企业职工安置费
A27: 棚户区改造支出
A28: 公共租赁住房支出
A29: 保障性住房租金补贴
A30: 农业生产发展支出 | D30: 384
A31: 农村社会事业支出
A32: 农业农村生态环境支出
A33: 其他国有土地使用权出让收入安排的支出
A34: 国有土地收益基金安排的支出
A35: 农业土地开发资金安排的支出
A36: 城市基础设施配套费安排的支出 | B36: 8,000 | C36: 8,000 | D36: 12,500 | E36: 156.3 | F36: 177.0
A37: 城市公共设施
A38: 城市环境卫生
A39: 公有房屋
A40: 城市防洪
A41: 其他城市基础设施配套费安排的支出 | B41: 8,000 | C41: 8,000 | D41: 12,500 | E41: 156.3 | F41: 177.0
A42: 污水处理费安排的支出 | B42: 6,000 | C42: 6,000 | D42: 9,300 | E42: 155.0 | F42: 265.7
A43: 污水处理设施建设和运营
A44: 代征手续费
A45: 其他污水处理费安排的支出 | B45: 6,000 | C45: 6,000 | D45: 9,300 | E45: 155.0 | F45: 265.7
A46: 土地储备专项债券收入安排的支出
A47: 棚户区改造专项债券收入安排的支出
A48: 城市基础设施配套费对应专项债务收入安排的支出
A49: 污水处理费对应专项债务收入安排的支出
A50: 国有土地使用权出让收入对应专项债务收入安排的支出
A51: 农林水支出
A52: 大中型水库库区基金安排的支出
A53: 三峡水库库区基金支出
A54: 国家重大水利工程建设基金安排的支出
A55: 大中型水库库区基金对应专项债务收入安排的支出
A56: 国家重大水利工程建设基金对应专项债务收入安排的支出
A57: 交通运输支出
A58: 海南省高等级公路车辆通行附加费安排的支出
A59: 车辆通行费安排的支出
A60: 港口建设费安排的支出
A61: 铁路建设基金支出
A62: 船舶油污损害赔偿基金支出
A63: 民航发展基金支出
A64: 海南省高等级公路车辆通行附加费对应专项债务收入安排的支出
A65: 政府收费公路专项债券收入安排的支出
A66: 车辆通行费对应专项债务收入安排的支出
A67: 港口建设费对应专项债务收入安排的支出
A68: 资源勘探工业信息等支出
A69: 农网还贷资金支出
A70: 金融支出
A71: 金融调控支出
A72: 其他支出 | C72: 74,900 | D72: 81,766 | E72: 109.2
A73: 其他政府性基金及对应专项债务收入安排的支出 | C73: 74,900 | D73: 80,768 | E73: 107.8
A74: 其他政府性基金安排的支出 | D74: 6,863
A75: 其他地方自行试点项目收益专项债券收入安排的支出 | C75: 74,900 | D75: 73,905 | E75: 98.7
A76: 其他政府性基金债务收入安排的支出
A77: 彩票发行销售机构业务费安排的支出
A78: 彩票公益金安排的支出 | D78: 998 | F78: 230.5
A79: 用于补充全国社会保障基金的彩票公益金支出
A80: 用于社会福利的彩票公益金支出 | D80: 308 | F80: 265.5
A81: 用于体育事业的彩票公益金支出 | D81: 680 | F81: 214.5
A82: 用于教育事业的彩票公益金支出
A83: 用于红十字事业的彩票公益金支出
A84: 用于残疾人事业的彩票公益金支出 | D84: 10
A85: 用于文化事业的彩票公益金支出
A86: 用于扶贫的彩票公益金支出
A87: 用于法律援助的彩票公益金支出
A88: 用于城乡医疗救助的彩票公益金支出
A89: 用于其他社会公益事业的彩票公益金支出
A90: 债务付息支出 | B90: 12,800 | C90: 12,800 | D90: 14,834 | E90: 115.9 | F90: 109.9
A91: 地方政府专项债务付息支出 | B91: 12,800 | C91: 12,800 | D91: 14,834 | E91: 115.9 | F91: 109.9
A92: 国有土地使用权出让金债务付息支出 | B92: 12,800 | C92: 12,800 | D92: 14,834 | E92: 115.9 | F92: 109.9
A93: 债务发行费用支出
A94: 地方政府专项债务发行费用支出
A95: 抗疫特别国债安排的支出
A96: 基础设施建设
A97: 抗疫相关支出
A98: 政府性基金预算支出 | B98: 149,100 | C98: 224,000 | D98: 241,687 | E98: 107.9 | F98: 116.4

Sheet 61.市本级政府性基金收支平衡
A1: 2022年攀枝花市市本级政府性基金预算收支平衡表
A2: 单位：万元
A3: 科 目 | B3: 执行数 | C3: 科 目 | D3: 执行数
A4: 政府性基金预算收入 | B4: 183,700 | C4: 政府性基金预算支出 | D4: =B16-D11-D13-D5 -> 241,687
A5: 政府性基金预算上级补助收入 | B5: 3,493 | C5: 政府性基金预算补助下级支出 | D5: 2,055
A6: 政府性基金预算下级上解收入 | C6: 政府性基金预算上解上级支出
A7: 政府性基金预算上年结余 | B7: 6,549
A8: 政府性基金预算调入资金 | C8: 政府性基金预算调出资金
A9: 一般公共预算调入
A10: 其他调入资金
A11: 债务收入 | C11: 债务还本支出 | D11: 45,968
C12: 地方政府专项债务还本支出 | D12: 45,968
A13: 债务转贷收入 | B13: 151,186 | C13: 债务转贷支出 | D13: 55,218
A14: 地方政府专项债务转贷收入 | B14: 151,186
C15: 政府性基金预算年终结余
A16: 收 入 总 计 | B16: =B4+B7+B13+B5 -> 344,928 | C16: 支 出 总 计 | D16: =D13+D11+D5+D4 -> 344,928

Sheet 62.市对区政府性基金预算转移支付
A1: 2022年市对区政府性基金预算转移支付补助执行情况表
E2: 单位：万元
A3: 科 目 | B3: 执行数
B4: 合计 | C4: 东区 | D4: 西区 | E4: 仁和区
A5: 补助下级支出 | B5: =B6+B10 -> 2,055 | C5: =C6+C10 -> 823 | D5: =D6+D10 -> 221 | E5: =E6+E10 -> 1,011
A6: 政府性基金转移支付支出 | B6: =B7+B8+B9 -> 2,055 | C6: =C7+C8+C9 -> 823 | D6: =D7+D8+D9 -> 221 | E6: =E7+E8+E9 -> 1,011
A7: 国家电影事业发展专项资金相关支出 | B7: =C7+D7+E7 -> 200 | C7: 150 | E7: 50
A8: 大中型水库移民后期扶持基金支出 | B8: =C8+D8+E8 -> 546 | D8: 81 | E8: 465
A9: 彩票公益金安排的支出 | B9: =C9+D9+E9 -> 1,309 | C9: 673 | D9: 140 | E9: 496
A10: 抗疫特别国债转移支付支出

Sheet 63.全市国有资本经营预算收入
A1: 2022年攀枝花市国有资本经营预算收入执行情况表
E2: 单位：万元，%
A3: 科 目 | B3: 年初预算数 | C3: 变动预算数 | D3: 执行数 | E3: 为变动预算 | F3: 为上年决算
A4: 利润收入 | B4: 6,165 | C4: 5,870 | D4: 5,870 | E4: 100.0 | F4: 129.1
A5: 投资服务企业利润收入 | B5: 6,165 | C5: 5,870 | D5: 5,870 | E5: 100.0 | F5: 134.4
A6: 其他国有资本经营预算企业利润收入
A7: 股利、股息收入
A8: 产权转让收入
A9: 清算收入
A10: 其他国有资本经营预算收入
A11: 合计 | B11: 6,165 | C11: 5,870 | D11: 5,870 | E11: 100.0 | F11: 129.1

Sheet 64.全市国有资本经营预算支出
A1: 2022年攀枝花市国有资本经营预算支出执行情况表
E2: 单位：万元，%
A3: 科 目 | B3: 年初预算数 | C3: 变动预算数 | D3: 执行数 | E3: 为变动预算 | F3: 为上年决算
A4: 一、补充全国社会保障基金
A5: 国有资本经营预算补充社保基金支出
A6: 二、解决历史遗留问题及改革成本支出 | B6: 558 | C6: 3,483 | D6: 3,483 | E6: 100.0 | F6: 107.5
A7: “ 三供一业” 移交补助支出 | B7: 307 | C7: 307 | D7: 307 | E7: 100.0 | F7: 176.4
A8: 国有企业办职教幼教补助支出 | C8: 1,743 | D8: 1,743 | E8: 100.0
A9: 国有企业退休人员社会化管理补助支出 | B9: 11 | C9: 1,193 | D9: 1,193 | E9: 100.0 | F9: 71.7
A10: 国有企业改革成本支出 | B10: 240 | C10: 240 | D10: 240 | E10: 100.0
A11: 其他解决历史遗留问题及改革成本支出
A12: 三、国有企业资本金注入 | B12: 265 | C12: 310 | D12: 310 | E12: 100.0 | F12: 117.0
A13: 国有经济结构调整支出
A14: 公益性设施投资支出 | B14: 265 | C14: 310 | D14: 310 | E14: 100.0 | F14: 117.0
A15: 前瞻性战略性产业发展支出
A16: 生态环境保护支出
A17: 支持科技进步支出
A18: 保障国家经济安全支出
A19: 对外投资合作支出
A20: 其他国有企业资本金注入
A21: 四、国有企业政策性补贴 | B21: 1,510 | C21: 1,510 | D21: 1,510 | E21: 100.0
A22: 国有企业政策性补贴 | B22: 1,510 | C22: 1,510 | D22: 1,510 | E22: 100.0
A23: 五、金融国有资本经营预算支出
A24: 资本性支出
A25: 改革性支出
A26: 其他金融国有资本经营预算支出
A27: 六、其他国有资本经营预算支出
A28: 合计 | B28: 2,333 | C28: 5,303 | D28: 5,303 | E28: 100.0 | F28: 151.3

Sheet 65.全市国有资本经营预算收支平衡
A1: 2022年攀枝花市国有资本经营预算收支平衡表
C2: 单位：万元
A3: 科 目 | B3: 执行数 | C3: 科 目 | D3: 执行数
A4: 国有资本经营预算收入 | B4: 5,870 | C4: 国有资本经营预算支出 | D4: 5,303
A5: 国有资本经营预算上级补助收入 | C5: 国有资本经营预算补助下级支出
A6: 国有资本经营预算下级上解收入 | C6: 国有资本经营预算上解上级支出
A7: 国有资本经营预算上年结余 | B7: 1,743 | C7: 国有资本经营预算调出资金 | D7: 2,310
C8: 国有资本经营预算年终结余
A9: 收 入 总 计 | B9: 7,613 | C9: 支 出 总 计 | D9: 7,613

Sheet 66.市本级国有资本经营预算收入
A1: 2022年攀枝花市市本级国有资本经营预算收入执行情况表
E2: 单位：万元，%
A3: 科 目 | B3: 年初预算数 | C3: 变动预算数 | D3: 执行数 | E3: 为变动预算 | F3: 为上年决算
A4: 利润收入 | B4: 2,500 | C4: 2,500 | D4: 2,500 | E4: 100.0 | F4: 112.6
A5: 投资服务企业利润收入 | B5: 2,500 | C5: 2,500 | D5: 2,500 | E5: 100.0 | F5: 112.6
A6: 其他国有资本经营预算企业利润收入
A7: 股利、股息收入
A8: 产权转让收入
A9: 清算收入
A10: 其他国有资本经营预算收入
A11: 合计 | B11: 2,500 | C11: 2,500 | D11: 2,500 | E11: 100.0 | F11: 104.2

Sheet 67.市本级国有资本经营预算支出
A1: 2022年攀枝花市市本级国有资本经营预算支出执行情况表
E2: 单位：万元，%
A3: 科 目 | B3: 年初预算数 | C3: 变动预算数 | D3: 执行数 | E3: 为变动预算 | F3: 为上年决算
A4: 一、补充全国社会保障基金
A5: 二、解决历史遗留问题及改革成本支出 | B5: 240 | C5: 240 | D5: 240 | E5: 100.0
A6: “ 三供一业” 移交补助支出
A7: 国有企业办职教幼教补助支出
A8: 国有企业退休人员社会化管理补助支出
A9: 国有企业改革成本支出 | B9: 240 | C9: 240 | D9: 240 | E9: 100.0
A10: 其他解决历史遗留问题及改革成本支出
A11: 三、国有企业资本金注入
A12: 四、国有企业政策性补贴 | B12: 1,510 | C12: 1,510 | D12: 1,510 | E12: 100.0
A13: 国有企业政策性补贴 | B13: 1,510 | C13: 1,510 | D13: 1,510 | E13: 100.0
A14: 五、金融国有资本经营预算支出
A15: 六、其他国有资本经营预算支出
A16: 合计 | B16: 1,750 | C16: 1,750 | D16: 1,750 | E16: 100.0 | F16: 125.0

Sheet 68.市本级国有资本经营预算收支平衡
A1: 2022年攀枝花市市本级国有资本经营预算收支平衡表
C2: 单位：万元
A3: 科 目 | B3: 执行数 | C3: 科 目 | D3: 执行数
A4: 国有资本经营预算收入 | B4: 2,500 | C4: 国有资本经营预算支出 | D4: =B9-D7 -> 1,750
A5: 国有资本经营预算上级补助收入 | C5: 国有资本经营预算补助下级支出
A6: 国有资本经营预算下级上解收入 | C6: 国有资本经营预算上解上级支出
A7: 国有资本经营预算上年结余 | C7: 国有资本经营预算调出资金 | D7: 750
C8: 国有资本经营预算年终结余
A9: 收 入 总 计 | B9: =B7+B4 -> 2,500 | C9: 支 出 总 计 | D9: 2,500

Sheet 69.全市及市本级社会保险基金收入
A1: 2022年攀枝花市及市本级社会保险基金预算收入执行情况表
C2: 单位：万元
A3: 科目 | B3: 执行数
B4: 全市 | C4: 市级
A5: 社会保险基金收入 | B5: 364,254 | C5: 364,254
A6: 城乡居民基本养老保险基金收入 | B6: 20,478 | C6: 20,478
A7: 职工基本医疗保险(含生育保险）基金收入 | B7: 234,519 | C7: 234,519
A8: 城乡居民基本医疗保险基金收入 | B8: 68,109 | C8: 68,109
A9: 工伤保险基金收入 | B9: 26,695 | C9: 26,695
A10: 失业保险基金收入 | B10: 14,453 | C10: 14,453
A11: 上年滚存结余 | B11: 251,023 | C11: 251,023
A12: 说明：企业职工养老保险、机关事业单位养老保险由省级统筹，失业保险、城镇职工基本医疗保险、工伤保险、城乡居民基本养老保险、城乡居民基本医疗保险由市级统筹。

Sheet 70.全市及市本级社会保险基金支出
A1: 2022年攀枝花市及市本级社会保险基金预算支出执行情况表
C2: 单位：万元
A3: 科目 | B3: 执行数
B4: 全市 | C4: 市级
A5: 社会保险基金支出 | B5: 324,547 | C5: 324,547
A6: 城乡居民基本养老保险基金支出 | B6: 12,084 | C6: 12,084
A7: 职工基本医疗保险(含生育保险）基金支出 | B7: 204,064 | C7: 204,064
A8: 城乡居民基本医疗保险基金支出 | B8: 67,070 | C8: 67,070
A9: 工伤保险基金支出 | B9: 24,199 | C9: 24,199
A10: 失业保险基金支出 | B10: 17,130 | C10: 17,130
A11: 年终滚存结余 | B11: 290,730 | C11: 290,730
A12: 说明：企业职工养老保险、机关事业单位养老保险由省级统筹，失业保险、城镇职工基本医疗保险、工伤保险、城乡居民基本养老保险、城乡居民基本医疗保险由市级统筹。

Sheet 71.全市及市本级社会保险基金收支平衡
A1: 2022年攀枝花市及市本级社会保险基金收支平衡表
F2: 单位：万元
A3: 科目 | B3: 执行数 | D3: 科目 | E3: 执行数
B4: 全市 | C4: 市级 | E4: 全市 | F4: 市级
A5: 社会保险基金收入 | B5: =SUM(B6:B10) -> 364,254 | C5: 364,254 | D5: 社会保险基金支出 | E5: 324,547 | F5: 324,547
A6: 城乡居民基本养老保险基金收入 | B6: 20,478 | C6: 20,478 | D6: 城乡居民基本养老保险基金支出 | E6: 12,084 | F6: 12,084
A7: 职工基本医疗保险(含生育保险）基金收入 | B7: 234,519 | C7: 234,519 | D7: 职工基本医疗保险(含生育保险）基金支出 | E7: 204,064 | F7: 204,064
A8: 城乡居民基本医疗保险基金收入 | B8: 68,109 | C8: 68,109 | D8: 城乡居民基本医疗保险基金支出 | E8: 67,070 | F8: 67,070
A9: 工伤保险基金收入 | B9: 26,695 | C9: 26,695 | D9: 工伤保险基金支出 | E9: 24,199 | F9: 24,199
A10: 失业保险基金收入 | B10: 14,453 | C10: 14,453 | D10: 失业保险基金支出 | E10: 17,130 | F10: 17,130
A11: 上年滚存结余 | B11: 251,023 | C11: 251,023 | D11: 年终滚存结余 | E11: =B5-E5+B11 -> 290,730 | F11: =C5-F5+C11 -> 290,730
A12: 说明：企业职工养老保险、机关事业单位养老保险由省级统筹，失业保险、城镇职工基本医疗保险、工伤保险、城乡居民基本养老保险、城乡居民基本医疗保险由市级统筹。
